Workbook

Sheet גיליון1
A1: =[1]הערות!A1 -> V2.01 | B1: =[1]הערות!C2 -> הראל חברה לביטוח בע"מ | BB1: 'נספחים ב וג'!$
B2: דו"ח חודשי , שיעורי ההשקעות ורכוש קבוע מסך כל ההתחייבויות לתקופה שנסתיימה ביום - | L2: 30/04/24 | AI2: =AJ2-1 -> 50 | AJ2: 51 | AK2: 52 | AL2: 53 | AM2: 54 | AN2: 55 | AO2: 56 | AP2: 57 | AQ2: 58 | AR2: 59 | AS2: 60 | AT2: 61 | AU2: 62 | AV2: 63 | AW2: =AX2-1 -> 64 | AX2: 65 | AY2: 66 | AZ2: 67 | BA2: =BB2-1 -> 68 | BB2: 69 | BC2: =BB2+1 -> 70 | BD2: =BC2+1 -> 71 | BE2: 72 | BF2: 73 | BG2: 74 | BH2: 75 | BI2: 76 | BJ2: 77 | BK2: 78 | BL2: 79 | BM2: 80 | BN2: 81 | BO2: 82 | BP2: 83 | BQ2: 84 | BR2: 85 | BS2: 86 | BT2: 87 | BU2: 88 | BV2: 89 | BW2: 90 | BX2: 91 | BY2: 92 | BZ2: 93 | CA2: 94 | CB2: 95 | CC2: 96 | CD2: 97 | CE2: 98 | CF2: 99
B3: =CONCATENATE([1]הערות!$G$103) -> הסכומים באלפי ש"ח | K3: =CONCATENATE(I1) ->  | O3: 1 | P3: =O3+1 -> 2 | Q3: =P3+1 -> 3 | R3: 4 | S3: 5 | T3: 6 | U3: 7 | V3: 8 | W3: 9 | X3: 10 | Y3: 11 | Z3: 12 | AA3: 13 | AB3: 14 | AC3: 15 | AD3: 16 | AE3: 17 | AF3: 18 | AG3: 19 | AH3: 20 | AI3: 21 | AJ3: 22 | AK3: 23 | AL3: 24 | AM3: 25 | AN3: 26 | AO3: 27 | AP3: 28 | AQ3: 29 | AR3: 30 | AS3: 31 | AT3: 32 | AU3: 33 | AV3: 34 | AW3: =AV3+1 -> 35 | AX3: 36 | AY3: 37 | AZ3: 38 | BA3: 39 | BB3: 40 | BC3: 41 | BD3: 42 | BE3: 43 | BF3: 44 | BG3: 45 | BH3: 46 | BI3: 47 | BJ3: 48 | BK3: 49 | BL3: 50 | BM3: 51 | BN3: 52 | BO3: 53 | BP3: 54 | BQ3: 55 | BR3: 56 | BS3: 57 | BT3: 58 | BU3: 59 | BV3: 60 | BW3: 61 | BX3: 62 | BY3: 63 | BZ3: 64 | CA3: 65 | CB3: 66 | CC3: 67 | CD3: 68 | CE3: 69 | CF3: 70
J6: סה"כ משתתף ברווחים | K6: ביטוח חיים
K7: 10 | L7: 11 | M7: 12 | N7: 13
I8: חזרה | K8: ='[1]נספחים ב וג'!$B$10 -> קרן ח' | L8: ='[1]נספחים ב וג'!$B$11 -> קרן ט' | M8: ='[1]נספחים ב וג'!$B$12 -> קרן י' | N8: ='[1]נספחים ב וג'!$B$13 -> קרן י' פוליסות שהונפקו לאחר 1.1.04 | O8: ='[1]נספחים ב וג'!$C$30 -> הראל-מסלול כללי | P8: ='[1]נספחים ב וג'!$C$31 -> הראל-מסלול אג"ח ללא מניות | Q8: ='[1]נספחים ב וג'!$C$32 -> הראל-מסלול אג"ח עד 20% במניות | R8: ='[1]נספחים ב וג'!$C$33 -> הראל-מסלול אג"ח עד 10% במניות | S8: ='[1]נספחים ב וג'!$C$34 -> הראל-מסלול מניות | T8: ='[1]נספחים ב וג'!$C$35 -> הראל-מסלול שקלי טווח קצר | U8: ='[1]נספחים ב וג'!$C$36 -> הראל-מסלול חו"ל | V8: ='[1]נספחים ב וג'!$C$37 -> הראל - מסלול אג"ח מדינת ישראל | W8: ='[1]נספחים ב וג'!$C$38 -> הראל - מסלול אג"ח קונצרני | X8: ='[1]נספחים ב וג'!$C$39 -> הראל-מסלול משתתף ברווחים שקלי טווח קצר | Y8: ='[1]נספחים ב וג'!$C$40 -> הראל-מסלול משתתף ברווחים כללי ללא מניות | Z8: ='[1]נספחים ב וג'!$C$41 -> הראל-מסלול משתתף ברווחים לפחות 75% מניות | AA8: ='[1]נספחים ב וג'!$C$42 -> הראל- אג"ח חו"ל | AB8: ='[1]נספחים ב וג'!$C$43 -> הראל-מסלול פאסיבי - כללי | AC8: ='[1]נספחים ב וג'!$C$44 -> הראל-מסלול לבני 50 ומטה | AD8: ='[1]נספחים ב וג'!$C$45 -> הראל-מסלול לבני 50 עד 60 | AE8: ='[1]נספחים ב וג'!$C$46 -> הראל-מסלול לבני 60 ומעלה | AF8: ='[1]נספחים ב וג'!$C$47 -> הראל-מסלול בסיסי למקבלי קצבה | AG8: ='[1]נספחים ב וג'!$C$48 -> הראל-מסלול אג"ח עד 20% במניות למקבלי קצבה | AH8: ='[1]נספחים ב וג'!$C$49 -> הראל חברה לביטוח בע"מ מדרגות עד 50 | AI8: הראל מסלול לגילאי 50 עד 60 | AJ8: הראל מסלול לגילאי 60 ומעלה | AK8: הראל מסלול בסיסי למקבלי קצבה | AL8: הראל מסלול אג"ח עד 20% במניות למקבלי קצבה | AM8: הראל מסלול הוני ללא אג"ח | AN8: הראל מחקה מדד ממשלתי שקלי ריבית קבועה | AO8: הראל מחקה מדד S&P 500 | AP8: הראל מחקה מדד ממשלתי צמוד 5-10 | AQ8: הראל מחקה מדד תל בונד 60 | AR8: הראל מחקה מדד ת"א 35 | AS8: הראל מסלול עוקב מדדים גמיש | AT8: הראל מסלול משולב סחיר | AU8: הראל מסלול קיימות | AV8: הראל ביטוח פאסיבי מדדי מניות | AW8: =INDIRECT(CONCATENATE($BB$1,"C$",AW$2)) ->  | BB8: =INDIRECT(CONCATENATE($BB$1,"C$",BB$2)) ->  | BC8: =INDIRECT(CONCATENATE($BB$1,"C$",BC$2)) ->  | CG8: אחר
A9: שורה | K9: =IF('[1]נספחים ב וג'!$N$10=0,0,CONCATENATE(VLOOKUP($B$1,[1]הערות!$D$89:$F$111,3,0),"0",K7)) -> 259010 | L9: =IF('[1]נספחים ב וג'!$N$11=0,0,CONCATENATE(VLOOKUP($B$1,[1]הערות!$D$89:$F$111,3,0),"0",L7)) -> 259011 | M9: =IF('[1]נספחים ב וג'!$N$12=0,0,CONCATENATE(VLOOKUP($B$1,[1]הערות!$D$89:$F$111,3,0),"0",M7)) -> 259012 | N9: =IF('[1]נספחים ב וג'!$N$13=0,0,CONCATENATE(VLOOKUP($B$1,[1]הערות!$D$89:$F$111,3,0),"0",N7)) -> 259013 | O9: ='[1]נספחים ב וג'!$B$30 -> 88 | P9: ='[1]נספחים ב וג'!$B$31 -> 89 | Q9: ='[1]נספחים ב וג'!$B$32 -> 90 | R9: ='[1]נספחים ב וג'!$B$33 -> 91 | S9: ='[1]נספחים ב וג'!$B$34 -> 92 | T9: ='[1]נספחים ב וג'!$B$35 -> 93 | U9: ='[1]נספחים ב וג'!$B$36 -> 163 | V9: ='[1]נספחים ב וג'!$B$37 -> 177 | W9: ='[1]נספחים ב וג'!$B$38 -> 178 | X9: ='[1]נספחים ב וג'!$B$39 -> 195 | Y9: ='[1]נספחים ב וג'!$B$40 -> 196 | Z9: ='[1]נספחים ב וג'!$B$41 -> 197 | AA9: ='[1]נספחים ב וג'!$B$42 -> 8592 | AB9: ='[1]נספחים ב וג'!$B$43 -> 9561 | AC9: ='[1]נספחים ב וג'!$B$44 -> 9562 | AD9: ='[1]נספחים ב וג'!$B$45 -> 9563 | AE9: ='[1]נספחים ב וג'!$B$46 -> 9564 | AF9: ='[1]נספחים ב וג'!$B$47 -> 9565 | AG9: ='[1]נספחים ב וג'!$B$48 -> 9566 | AH9: ='[1]נספחים ב וג'!$B$49 -> 11400 | AI9: 11401 | AJ9: 11402 | AK9: 11403 | AL9: 11404 | AM9: 12981 | AN9: 13433 | AO9: 13434 | AP9: 13435 | AQ9: 13436 | AR9: 13437 | AS9: 14414 | AT9: 14210 | AU9: 14211 | AV9: 15029 | AW9: =INDIRECT(CONCATENATE($BB$1,"b$",AW$2)) ->  | BB9: =INDIRECT(CONCATENATE($BB$1,"b$",BB$2)) ->  | BC9: =INDIRECT(CONCATENATE($BB$1,"b$",BC$2)) -> 
A10: 10 | B10: 1. | C10: השקעות | J10: 80364276.49 | K10: 3380.659987 | L10: 931119.7652 | M10: 24165161.05 | N10: 829233.3252 | O10: 21048078.08 | P10: 975674.3806 | Q10: 4964449.64 | R10: 1075219.56 | S10: 2858414.551 | T10: 855451.4791 | U10: 3038352.34 | V10: 191244.55 | W10: 358476.65 | X10: 53321.60833 | Y10: 60642.63765 | Z10: 190229.614 | AA10: 134714.42 | AB10: 447210.5 | AC10: 2650035.7 | AD10: 1587504.66 | AE10: 1785812.427 | AF10: 2374651.344 | AG10: 1003146.388 | AH10: 30602.70232 | AI10: 143702.0087 | AJ10: 243210.6602 | AK10: 1594672.454 | AL10: 534122.636 | AM10: 192968.09 | AN10: 39252.66 | AO10: 1565261.16 | AP10: 46810.96 | AQ10: 154228.16 | AR10: 163374.71 | AS10: 54608.9 | AT10: 7708.76 | AU10: 10181.08 | AV10: 45673.08 | AW10: 0 | AX10: 0 | AY10: 0 | AZ10: 0 | BA10: 0 | BB10: 0 | BC10: 0 | BD10: 0 | BE10: 0 | BF10: 0 | BG10: 0 | BH10: 0 | BI10: 0 | BJ10: 0 | BK10: 0 | BL10: 0 | BM10: 0 | BN10: 0 | BO10: 0 | BP10: 0 | BQ10: 0 | BR10: 0 | BS10: 0 | BT10: 0 | BU10: 0 | BV10: 0 | BW10: 0 | BX10: 0 | BY10: 0 | BZ10: 0 | CA10: 0 | CB10: 0 | CC10: 0 | CD10: 0 | CE10: 0 | CF10: 0 | CG10: 3956373.14
A11: =A10+1 -> 11 | C11: א. | D11: מזומנים ושווי מזומנים | J11: 6879777.79 | K11: 219.6587437 | L11: 79758.06792 | M11: 2344189.506 | N11: 80441.42783 | O11: 1783055.36 | P11: 93046.59723 | Q11: 203489.46 | R11: 37967.89 | S11: 313427.4501 | T11: 53213.93356 | U11: 447335.22 | V11: 13807.27 | W11: 20383.14 | X11: 3316.906443 | Y11: 5783.272772 | Z11: 20858.82988 | AA11: 13190.15 | AB11: 15581.37 | AC11: 128506.898 | AD11: 102565.7941 | AE11: 85788.77512 | AF11: 124141.0242 | AG11: 60720.96376 | AH11: 1484.002025 | AI11: 9284.325902 | AJ11: 11683.61488 | AK11: 83365.61582 | AL11: 32330.71624 | AM11: 19236.39 | AN11: 502.68 | AO11: 289813.14 | AP11: 553.35 | AQ11: 1839.87 | AR11: 1445.24 | AS11: 2005.45 | AT11: 1160.02 | AU11: 860.73 | AV11: 1303.61 | AW11: 0 | AX11: 0 | AY11: 0 | AZ11: 0 | BA11: 0 | BB11: 0 | BC11: 0 | BD11: 0 | BE11: 0 | BF11: 0 | BG11: 0 | BH11: 0 | BI11: 0 | BJ11: 0 | BK11: 0 | BL11: 0 | BM11: 0 | BN11: 0 | BO11: 0 | BP11: 0 | BQ11: 0 | BR11: 0 | BS11: 0 | BT11: 0 | BU11: 0 | BV11: 0 | BW11: 0 | BX11: 0 | BY11: 0 | BZ11: 0 | CA11: 0 | CB11: 0 | CC11: 0 | CD11: 0 | CE11: 0 | CF11: 0 | CG11: 392120.07
A12: 12 | D12: (1 | E12: בישראל | J12: 6755380.99 | K12: 215.6942092 | L12: 78318.54582 | M12: 2301880.148 | N12: 78989.57203 | O12: 1746117.052 | P12: 93046.59723 | Q12: 201755.7284 | R12: 37965.24134 | S12: 301874.9794 | T12: 53213.93356 | U12: 447335.22 | V12: 13807.27 | W12: 20383.05317 | X12: 3316.906443 | Y12: 5783.272772 | Z12: 20858.82988 | AA12: 5648.356622 | AB12: 15581.37 | AC12: 122886.9987 | AD12: 99581.91674 | AE12: 83863.95417 | AF12: 117268.0571 | AG12: 59722.31262 | AH12: 1484.002025 | AI12: 9284.325902 | AJ12: 11683.61488 | AK12: 83365.61582 | AL12: 32330.71624 | AM12: 18873.7168 | AN12: 502.68 | AO12: 289813.14 | AP12: 553.35 | AQ12: 1839.87 | AR12: 1445.24 | AS12: 2005.45 | AT12: 1138.123649 | AU12: 860.73 | AV12: 1303.61 | AW12: 0 | AX12: 0 | AY12: 0 | AZ12: 0 | BA12: 0 | BB12: 0 | BC12: 0 | BD12: 0 | BE12: 0 | BF12: 0 | BG12: 0 | BH12: 0 | BI12: 0 | BJ12: 0 | BK12: 0 | BL12: 0 | BM12: 0 | BN12: 0 | BO12: 0 | BP12: 0 | BQ12: 0 | BR12: 0 | BS12: 0 | BT12: 0 | BU12: 0 | BV12: 0 | BW12: 0 | BX12: 0 | BY12: 0 | BZ12: 0 | CA12: 0 | CB12: 0 | CC12: 0 | CD12: 0 | CE12: 0 | CF12: 0 | CG12: 389481.7951
A13: 13 | E13: א) | F13: יתרות מזומנים ועו"ש בשקלים חדשים | J13: 4567101.29 | K13: 156.3575618 | L13: 56773.41509 | M13: 1668641.773 | N13: 57259.84457 | O13: 1276410.52 | P13: 77993.15755 | Q13: 157046.67 | R13: 24184.86 | S13: 203142.1208 | T13: 43966.43442 | U13: 176441.67 | V13: 12843.77 | W13: 16146.73 | X13: 2740.495578 | Y13: 4847.632454 | Z13: 13519.2592 | AA13: 7595.64 | AB13: 14390.02 | AC13: 65337.94519 | AD13: 70237.66819 | AE13: 60991.57749 | AF13: 76485.19287 | AG13: 49023.77233 | AH13: 754.5248114 | AI13: 6357.961812 | AJ13: 8306.47251 | AK13: 51362.83713 | AL13: 26102.57767 | AM13: 13100.6 | AN13: 502.68 | AO13: 20642.69 | AP13: 553.35 | AQ13: 1839.87 | AR13: 1445.24 | AS13: 2005.45 | AT13: 797.17 | AU13: 441.71 | AV13: 1256.49 | CG13: 295455.14
A14: 14 | E14: ב) | F14: יתרות מזומנים ועו"ש נקובים במט"ח | J14: 1499052.48 | K14: 40.69818063 | L14: 14777.50533 | M14: 434329.3889 | N14: 14904.11765 | O14: 439362.4119 | P14: 11841.89209 | Q14: 31375.5584 | R14: 10768.84134 | S14: 94469.40462 | T14: 2.974589269 | U14: 162128.42 | V14: 0 | W14: 2774.343168 | X14: 0.1854107309 | Y14: 736.027906 | Z14: 7055.834647 | AA14: -2617.903378 | AB14: 1191.35 | AC14: 53798.39621 | AD14: 26176.78914 | AE14: 19704.40437 | AF14: 35950.60064 | AG14: 8076.172872 | AH14: 686.1644957 | AI14: 2639.643496 | AJ14: 2945.694683 | AK14: 28757.72227 | AL14: 4831.865994 | AM14: 5592.386797 | AN14: 0 | AO14: 5627.21 | AP14: 0 | AQ14: 0 | AR14: 0 | AS14: 0 | AT14: 304.9136492 | AU14: 419.02 | AV14: 47.12 | CG14: 80353.32509
A15: 15 | E15: ג) | F15: פח"ק/פר"י | J15: 330085.9 | K15: 18.60416915 | L15: 6755.171963 | M15: 198542.9642 | N15: 6813.049665 | O15: 30023.23 | P15: 3211.547588 | Q15: 13325.42 | R15: 3011.54 | S15: 4134.965004 | T15: 9244.524546 | U15: 14220.55 | V15: 963.5 | W15: 1461.98 | X15: 576.2254542 | Y15: 199.6124122 | Z15: 275.1849959 | AA15: 670.62 | AC15: 3697.125469 | AD15: 3141.719408 | AE15: 3152.605173 | AF15: 4794.17294 | AG15: 2616.31827 | AH15: 42.69453056 | AI15: 284.3905918 | AJ15: 429.3548271 | AK15: 3219.47706 | AL15: 1393.05173 | AM15: 176.89 | AT15: 36.04 | CG15: 13653.37
A16: 16 | E16: ד) | F16: פק"מ לתקופה של עד שלושה חודשים | J16: 264596.74 | K16: 0.03429755166 | L16: 12.45343758 | M16: 366.0221274 | N16: 12.56013751 | O16: 320.89 | P16: 0 | Q16: 8.08 | S16: 128.4889639 | T16: 0 | W16: 0 | X16: 0 | Y16: 0 | Z16: 8.551036097 | AC16: 53.53181281 | AD16: 25.73999778 | AE16: 15.36714154 | AF16: 38.09063175 | AG16: 6.049147463 | AH16: 0.6181871935 | AI16: 2.330002221 | AJ16: 2.092858458 | AK16: 25.57936825 | AL16: 3.220852537 | AM16: 3.84 | AO16: 263543.24 | CG16: 19.96
A17: 17 | E17: ה) | F17: פיקדון צמוד מדד עד שלושה חודשים | J17: 0 | K17: 0 | L17: 0 | M17: 0 | N17: 0 | P17: 0 | S17: 0 | T17: 0 | X17: 0 | Y17: 0 | Z17: 0 | AC17: 0 | AD17: 0 | AE17: 0 | AF17: 0 | AG17: 0 | AH17: 0 | AI17: 0 | AJ17: 0 | AK17: 0 | AL17: 0 | CG17: 0
A18: 18 | E18: ו) | F18: פיקדון צמוד מט"ח עד שלושה חודשים (פצ"מ) | J18: 0 | K18: 0 | L18: 0 | M18: 0 | N18: 0 | P18: 0 | S18: 0 | T18: 0 | X18: 0 | Y18: 0 | Z18: 0 | AC18: 0 | AD18: 0 | AE18: 0 | AF18: 0 | AG18: 0 | AH18: 0 | AI18: 0 | AJ18: 0 | AK18: 0 | AL18: 0 | CG18: 0
A19: 19 | E19: ז) | F19: פיקדונות במט"ח עד שלושה חודשים | J19: 94544.58 | K19: 0 | L19: 0 | M19: 0 | N19: 0 | P19: 0 | S19: 0 | T19: 0 | U19: 94544.58 | X19: 0 | Y19: 0 | Z19: 0 | AC19: 0 | AD19: 0 | AE19: 0 | AF19: 0 | AG19: 0 | AH19: 0 | AI19: 0 | AJ19: 0 | AK19: 0 | AL19: 0 | CG19: 0
A20: 20 | D20: (2 | E20: בחו"ל | J20: 124396.7995 | K20: 3.964534561 | L20: 1439.522103 | M20: 42309.35748 | N20: 1451.855798 | O20: 36938.30812 | P20: 0 | Q20: 1733.731597 | R20: 2.64865517 | S20: 11552.47073 | T20: 0 | U20: 0 | V20: 0 | W20: 0.08683210598 | X20: 0 | Y20: 0 | Z20: 0 | AA20: 7541.793378 | AB20: 0 | AC20: 5619.899294 | AD20: 2983.877361 | AE20: 1924.820948 | AF20: 6872.967089 | AG20: 998.6511336 | AH20: 0 | AI20: 0 | AJ20: 0 | AK20: 0 | AL20: 0 | AM20: 362.6732026 | AN20: 0 | AO20: 0 | AP20: 0 | AQ20: 0 | AR20: 0 | AS20: 0 | AT20: 21.89635077 | AU20: 0 | AV20: 0 | AW20: 0 | AX20: 0 | AY20: 0 | AZ20: 0 | BA20: 0 | BB20: 0 | BC20: 0 | BD20: 0 | BE20: 0 | BF20: 0 | BG20: 0 | BH20: 0 | BI20: 0 | BJ20: 0 | BK20: 0 | BL20: 0 | BM20: 0 | BN20: 0 | BO20: 0 | BP20: 0 | BQ20: 0 | BR20: 0 | BS20: 0 | BT20: 0 | BU20: 0 | BV20: 0 | BW20: 0 | BX20: 0 | BY20: 0 | BZ20: 0 | CA20: 0 | CB20: 0 | CC20: 0 | CD20: 0 | CE20: 0 | CF20: 0 | CG20: 2638.274908
A21: 21 | E21: א) | F21: יתרות מזומנים ועו"ש נקובים במט"ח | J21: 124396.7995 | K21: 3.964534561 | L21: 1439.522103 | M21: 42309.35748 | N21: 1451.855798 | O21: 36938.30812 | Q21: 1733.731597 | R21: 2.64865517 | S21: 11552.47073 | W21: 0.08683210598 | AA21: 7541.793378 | AC21: 5619.899294 | AD21: 2983.877361 | AE21: 1924.820948 | AF21: 6872.967089 | AG21: 998.6511336 | AM21: 362.6732026 | AT21: 21.89635077 | CG21: 2638.274908
A22: 22 | E22: ב) | F22: פיקדונות במט"ח עד שלושה חודשים | J22: 0 | K22: 0 | L22: 0 | M22: 0 | N22: 0 | P22: 0 | S22: 0 | T22: 0 | X22: 0 | Y22: 0 | Z22: 0 | AC22: 0 | AD22: 0 | AE22: 0 | AF22: 0 | AG22: 0 | AH22: 0 | AI22: 0 | AJ22: 0 | AK22: 0 | AL22: 0 | CG22: 0
A23: 23 | AC23: 0 | AD23: 0 | AE23: 0 | AF23: 0 | AG23: 0 | AH23: 0 | AI23: 0 | AJ23: 0 | AK23: 0 | AL23: 0 | CG23: 0
A24: 24 | C24: ב. | D24: ניירות ערך (למעט בחברות מוחזקות) | J24: 61603854.15 | K24: 2687.970149 | L24: 685493.534 | M24: 16990723.68 | N24: 583040.7778 | O24: 15666875.23 | P24: 649096.7499 | Q24: 4003918.42 | R24: 903187.1 | S24: 2496019.956 | T24: 800573.4535 | U24: 2556690.96 | V24: 178042.95 | W24: 265827.47 | X24: 49900.97647 | Y24: 40344.34007 | Z24: 166111.9842 | AA24: 118497.88 | AB24: 426250.48 | AC24: 2178406.28 | AD24: 1262535.447 | AE24: 1369226.79 | AF24: 1847213.873 | AG24: 775146.4088 | AH24: 25156.30975 | AI24: 114285.573 | AJ24: 186475.6604 | AK24: 1240477.297 | AL24: 412724.6512 | AM24: 168866.19 | AN24: 37515.59 | AO24: 1270892.39 | AP24: 45557.92 | AQ24: 150807.89 | AR24: 161422.69 | AS24: 52389.76 | AT24: 6402.65 | AU24: 9156.67 | AV24: 43122.24 | AW24: 0 | AX24: 0 | AY24: 0 | AZ24: 0 | BA24: 0 | BB24: 0 | BC24: 0 | BD24: 0 | BE24: 0 | BF24: 0 | BG24: 0 | BH24: 0 | BI24: 0 | BJ24: 0 | BK24: 0 | BL24: 0 | BM24: 0 | BN24: 0 | BO24: 0 | BP24: 0 | BQ24: 0 | BR24: 0 | BS24: 0 | BT24: 0 | BU24: 0 | BV24: 0 | BW24: 0 | BX24: 0 | BY24: 0 | BZ24: 0 | CA24: 0 | CB24: 0 | CC24: 0 | CD24: 0 | CE24: 0 | CF24: 0 | CG24: 3662787.96
A25: 25 | D25: (1 | E25: אגרות חוב ממשלתיות: | J25: 15184855.67 | K25: 1450.744268 | L25: 236256.9402 | M25: 3787097.56 | N25: 129955.1655 | O25: 3263115.65 | P25: 329033.2542 | Q25: 1198027.31 | R25: 246592.68 | S25: 201456.5282 | T25: 798572.2704 | U25: 668726.75 | V25: 177884.84 | W25: 1661.94 | X25: 49776.23964 | Y25: 20450.92584 | Z25: 13407.08176 | AA25: 22380.69 | AB25: 0 | AC25: 501453.2113 | AD25: 337413.4899 | AE25: 476221.9867 | AF25: 426959.0758 | AG25: 276810.9325 | AH25: 5790.798725 | AI25: 30542.90011 | AJ25: 64856.90327 | AK25: 286719.9342 | AL25: 147387.2475 | AM25: 10459.41 | AN25: 0 | AO25: 4007.45 | AP25: 0 | AQ25: 0 | AR25: 0 | AS25: 0 | AT25: 784.43 | AU25: 0 | AV25: 0 | AW25: 0 | AX25: 0 | AY25: 0 | AZ25: 0 | BA25: 0 | BB25: 0 | BC25: 0 | BD25: 0 | BE25: 0 | BF25: 0 | BG25: 0 | BH25: 0 | BI25: 0 | BJ25: 0 | BK25: 0 | BL25: 0 | BM25: 0 | BN25: 0 | BO25: 0 | BP25: 0 | BQ25: 0 | BR25: 0 | BS25: 0 | BT25: 0 | BU25: 0 | BV25: 0 | BW25: 0 | BX25: 0 | BY25: 0 | BZ25: 0 | CA25: 0 | CB25: 0 | CC25: 0 | CD25: 0 | CE25: 0 | CF25: 0 | CG25: 1469601.33
A26: 26 | E26: א) | F26: בישראל | J26: 15007181.58 | K26: 1449.511968 | L26: 235809.4922 | M26: 3773946.502 | N26: 129503.8837 | O26: 3249617.6 | P26: 327956.4806 | Q26: 1191937.11 | R26: 245414.97 | S26: 201456.5282 | T26: 798572.2704 | U26: 555291.17 | V26: 177884.84 | W26: 296.83 | X26: 49776.23964 | Y26: 20383.99943 | Z26: 13407.08176 | AA26: 9713.03 | AB26: 0 | AC26: 500374.4884 | AD26: 335939.2767 | AE26: 474719.4746 | AF26: 425210.5321 | AG26: 275655.1995 | AH26: 5778.341596 | AI26: 30409.45332 | AJ26: 64652.27541 | AK26: 285545.7179 | AL26: 146771.8805 | AM26: 10459.41 | AN26: 0 | AO26: 4007.45 | AP26: 0 | AQ26: 0 | AR26: 0 | AS26: 0 | AT26: 716.23 | AU26: 0 | AV26: 0 | AW26: 0 | AX26: 0 | AY26: 0 | AZ26: 0 | BA26: 0 | BB26: 0 | BC26: 0 | BD26: 0 | BE26: 0 | BF26: 0 | BG26: 0 | BH26: 0 | BI26: 0 | BJ26: 0 | BK26: 0 | BL26: 0 | BM26: 0 | BN26: 0 | BO26: 0 | BP26: 0 | BQ26: 0 | BR26: 0 | BS26: 0 | BT26: 0 | BU26: 0 | BV26: 0 | BW26: 0 | BX26: 0 | BY26: 0 | BZ26: 0 | CA26: 0 | CB26: 0 | CC26: 0 | CD26: 0 | CE26: 0 | CF26: 0 | CG26: 1464524.31
A27: 27 | F27: (1) | G27: סחיר | J27: 14898679.94 | K27: 353.6319677 | L27: 128403.7322 | M27: 3773946.502 | N27: 129503.8837 | O27: 3249617.6 | P27: 327956.4806 | Q27: 1191937.11 | R27: 245414.97 | S27: 201456.5282 | T27: 798572.2704 | U27: 555291.17 | V27: 177884.84 | W27: 296.83 | X27: 49776.23964 | Y27: 20383.99943 | Z27: 13407.08176 | AA27: 9713.03 | AB27: 0 | AC27: 500374.4884 | AD27: 335939.2767 | AE27: 474719.4746 | AF27: 425210.5321 | AG27: 275655.1995 | AH27: 5778.341596 | AI27: 30409.45332 | AJ27: 64652.27541 | AK27: 285545.7179 | AL27: 146771.8805 | AM27: 10459.41 | AN27: 0 | AO27: 4007.45 | AP27: 0 | AQ27: 0 | AR27: 0 | AS27: 0 | AT27: 716.23 | AU27: 0 | AV27: 0 | AW27: 0 | AX27: 0 | AY27: 0 | AZ27: 0 | BA27: 0 | BB27: 0 | BC27: 0 | BD27: 0 | BE27: 0 | BF27: 0 | BG27: 0 | BH27: 0 | BI27: 0 | BJ27: 0 | BK27: 0 | BL27: 0 | BM27: 0 | BN27: 0 | BO27: 0 | BP27: 0 | BQ27: 0 | BR27: 0 | BS27: 0 | BT27: 0 | BU27: 0 | BV27: 0 | BW27: 0 | BX27: 0 | BY27: 0 | BZ27: 0 | CA27: 0 | CB27: 0 | CC27: 0 | CD27: 0 | CE27: 0 | CF27: 0 | CG27: 1464524.31
A28: 28 | G28: (א) | H28: צמוד מדד | J28: 8602462.36 | K28: 201.9950679 | L28: 73344.38898 | M28: 2155683.449 | N28: 73972.79706 | O28: 2848156.2 | P28: 112474.1177 | Q28: 535180.1 | R28: 175832.7 | S28: 0 | T28: 0 | V28: 82484.59 | W28: 201.28 | X28: 0 | Y28: 6990.782275 | Z28: 0 | AC28: 469261.2452 | AD28: 232269.8538 | AE28: 334430.8767 | AF28: 257209.5663 | AG28: 148091.9002 | AH28: 5419.044807 | AI28: 21025.22619 | AJ28: 45546.30325 | AK28: 172726.4137 | AL28: 78851.13982 | CG28: 773108.39
A29: 29 | G29: (ג) | H29: לא צמוד בריבית קבועה | J29: 3390153.69 | K29: 106.090915 | L29: 38521.60067 | M29: 1132198.088 | N29: 38851.65025 | O29: 257398.75 | P29: 164899.5563 | Q29: 486520.81 | R29: 61186.98 | S29: 8323.157668 | T29: 32971.18524 | U29: 30555.15 | V29: 67952 | W29: 47.74 | X29: 2055.144761 | Y29: 10249.26373 | Z29: 553.9123322 | AA29: 1221.69 | AC29: 18415.12155 | AD29: 80701.78882 | AE29: 133279.1834 | AF29: 130711.5355 | AG29: 88636.95056 | AH29: 212.6584495 | AI29: 7305.181176 | AJ29: 18151.35661 | AK29: 87777.97449 | AL29: 47194.50944 | AM29: 431.84 | AT29: 29.57 | CG29: 443693.25
A30: 30 | G30: (ד) | H30: לא צמוד בריבית משתנה | J30: 455093.21 | K30: 16.58484171 | L30: 6021.95437 | M30: 176992.7809 | N30: 6073.54993 | O30: 30185.15 | P30: 30333.739 | Q30: 61555.03 | R30: 4816.78 | S30: 0.9094738397 | T30: 0 | U30: 1525.47 | V30: 12368.99 | W30: 9.2 | X30: 0 | Y30: 1885.381003 | Z30: 0.06052616035 | AA30: 163.84 | AC30: 507.8750418 | AD30: 10459.63654 | AE30: 728.0469349 | AF30: 19359.05657 | AG30: 5894.271017 | AH30: 5.864958241 | AI30: 946.8134606 | AJ30: 99.15306507 | AK30: 13000.37343 | AL30: 3138.388983 | CG30: 69004.31
A31: 31 | G31: (ה) | H31: צמוד מט"ח | J31: 0 | K31: 0 | L31: 0 | M31: 0 | N31: 0 | P31: 0 | S31: 0 | T31: 0 | X31: 0 | Y31: 0 | Z31: 0 | AC31: 0 | AD31: 0 | AE31: 0 | AF31: 0 | AG31: 0 | AH31: 0 | AI31: 0 | AJ31: 0 | AK31: 0 | AL31: 0 | CG31: 0
A32: 32 | G32: (ו) | H32: מק"מ | J32: 2450970.68 | K32: 28.96114309 | L32: 10515.78817 | M32: 309072.1842 | N32: 10605.88649 | O32: 113877.5 | P32: 20249.06758 | Q32: 108681.17 | R32: 3578.51 | S32: 193132.4611 | T32: 765601.0851 | U32: 523210.55 | V32: 15079.26 | W32: 38.61 | X32: 47721.09488 | Y32: 1258.572422 | Z32: 12853.10891 | AA32: 8327.5 | AC32: 12190.24662 | AD32: 12507.9975 | AE32: 6281.367513 | AF32: 17930.37371 | AG32: 33032.07774 | AH32: 140.7733822 | AI32: 1132.232497 | AJ32: 855.4624871 | AK32: 12040.95629 | AL32: 17587.84226 | AM32: 10027.57 | AO32: 4007.45 | AT32: 686.66 | CG32: 178718.36
A33: 33 | F33: (2) | G33: לא סחיר | J33: 108501.64 | K33: 1095.88 | L33: 107405.76 | M33: 0 | N33: 0 | O33: 0 | P33: 0 | Q33: 0 | R33: 0 | S33: 0 | T33: 0 | U33: 0 | V33: 0 | W33: 0 | X33: 0 | Y33: 0 | Z33: 0 | AA33: 0 | AB33: 0 | AC33: 0 | AD33: 0 | AE33: 0 | AF33: 0 | AG33: 0 | AH33: 0 | AI33: 0 | AJ33: 0 | AK33: 0 | AL33: 0 | AM33: 0 | AN33: 0 | AO33: 0 | AP33: 0 | AQ33: 0 | AR33: 0 | AS33: 0 | AT33: 0 | AU33: 0 | AV33: 0 | AW33: 0 | AX33: 0 | AY33: 0 | AZ33: 0 | BA33: 0 | BB33: 0 | BC33: 0 | BD33: 0 | BE33: 0 | BF33: 0 | BG33: 0 | BH33: 0 | BI33: 0 | BJ33: 0 | BK33: 0 | BL33: 0 | BM33: 0 | BN33: 0 | BO33: 0 | BP33: 0 | BQ33: 0 | BR33: 0 | BS33: 0 | BT33: 0 | BU33: 0 | BV33: 0 | BW33: 0 | BX33: 0 | BY33: 0 | BZ33: 0 | CA33: 0 | CB33: 0 | CC33: 0 | CD33: 0 | CE33: 0 | CF33: 0 | CG33: 0
A34: 34 | G34: (א) | H34: אג"ח מיועדות - הסכמי "חץ" כולל אג"ח של חברת החשמל | J34: 108501.64 | K34: 1095.88 | L34: 107405.76 | M34: 0 | N34: 0 | P34: 0 | S34: 0 | T34: 0 | X34: 0 | Y34: 0 | Z34: 0 | AC34: 0 | AD34: 0 | AE34: 0 | AF34: 0 | AG34: 0 | AH34: 0 | AI34: 0 | AJ34: 0 | AK34: 0 | AL34: 0 | CG34: 0
A35: 35 | G35: (ב) | H35: אג"ח לא סחירות אחרות | J35: 0 | K35: 0 | L35: 0 | M35: 0 | N35: 0 | P35: 0 | S35: 0 | T35: 0 | X35: 0 | Y35: 0 | Z35: 0 | AC35: 0 | AD35: 0 | AE35: 0 | AF35: 0 | AG35: 0 | AH35: 0 | AI35: 0 | AJ35: 0 | AK35: 0 | AL35: 0 | CG35: 0
A36: 36 | E36: ב) | F36: בחו"ל | J36: 177674.09 | K36: 1.23230006 | L36: 447.4480287 | M36: 13151.05795 | N36: 451.2817229 | O36: 13498.05 | P36: 1076.773583 | Q36: 6090.2 | R36: 1177.71 | S36: 0 | T36: 0 | U36: 113435.58 | V36: 0 | W36: 1365.11 | X36: 0 | Y36: 66.92641678 | Z36: 0 | AA36: 12667.66 | AB36: 0 | AC36: 1078.722872 | AD36: 1474.213211 | AE36: 1502.512143 | AF36: 1748.54366 | AG36: 1155.733017 | AH36: 12.45712838 | AI36: 133.4467891 | AJ36: 204.6278572 | AK36: 1174.21634 | AL36: 615.3669825 | AM36: 0 | AN36: 0 | AO36: 0 | AP36: 0 | AQ36: 0 | AR36: 0 | AS36: 0 | AT36: 68.2 | AU36: 0 | AV36: 0 | AW36: 0 | AX36: 0 | AY36: 0 | AZ36: 0 | BA36: 0 | BB36: 0 | BC36: 0 | BD36: 0 | BE36: 0 | BF36: 0 | BG36: 0 | BH36: 0 | BI36: 0 | BJ36: 0 | BK36: 0 | BL36: 0 | BM36: 0 | BN36: 0 | BO36: 0 | BP36: 0 | BQ36: 0 | BR36: 0 | BS36: 0 | BT36: 0 | BU36: 0 | BV36: 0 | BW36: 0 | BX36: 0 | BY36: 0 | BZ36: 0 | CA36: 0 | CB36: 0 | CC36: 0 | CD36: 0 | CE36: 0 | CF36: 0 | CG36: 5077.02
A37: 37 | F37: (1) | G37: סחיר | J37: 177674.09 | K37: 1.23230006 | L37: 447.4480287 | M37: 13151.05795 | N37: 451.2817229 | O37: 13498.05 | P37: 1076.773583 | Q37: 6090.2 | R37: 1177.71 | S37: 0 | T37: 0 | U37: 113435.58 | V37: 0 | W37: 1365.11 | X37: 0 | Y37: 66.92641678 | Z37: 0 | AA37: 12667.66 | AB37: 0 | AC37: 1078.722872 | AD37: 1474.213211 | AE37: 1502.512143 | AF37: 1748.54366 | AG37: 1155.733017 | AH37: 12.45712838 | AI37: 133.4467891 | AJ37: 204.6278572 | AK37: 1174.21634 | AL37: 615.3669825 | AM37: 0 | AN37: 0 | AO37: 0 | AP37: 0 | AQ37: 0 | AR37: 0 | AS37: 0 | AT37: 68.2 | AU37: 0 | AV37: 0 | AW37: 0 | AX37: 0 | AY37: 0 | AZ37: 0 | BA37: 0 | BB37: 0 | BC37: 0 | BD37: 0 | BE37: 0 | BF37: 0 | BG37: 0 | BH37: 0 | BI37: 0 | BJ37: 0 | BK37: 0 | BL37: 0 | BM37: 0 | BN37: 0 | BO37: 0 | BP37: 0 | BQ37: 0 | BR37: 0 | BS37: 0 | BT37: 0 | BU37: 0 | BV37: 0 | BW37: 0 | BX37: 0 | BY37: 0 | BZ37: 0 | CA37: 0 | CB37: 0 | CC37: 0 | CD37: 0 | CE37: 0 | CF37: 0 | CG37: 5077.02
A38: 38 | G38: (א) | H38: ממשלת ישראל שהונפקו בחו"ל | J38: 0 | K38: 0 | L38: 0 | M38: 0 | N38: 0 | P38: 0 | S38: 0 | T38: 0 | X38: 0 | Y38: 0 | Z38: 0 | AC38: 0 | AD38: 0 | AE38: 0 | AF38: 0 | AG38: 0 | AH38: 0 | AI38: 0 | AJ38: 0 | AK38: 0 | AL38: 0 | CG38: 0
A39: 39 | G39: (ב) | H39: שהנפיקה ממשלה זרה | J39: 177674.09 | K39: 1.23230006 | L39: 447.4480287 | M39: 13151.05795 | N39: 451.2817229 | O39: 13498.05 | P39: 1076.773583 | Q39: 6090.2 | R39: 1177.71 | S39: 0 | T39: 0 | U39: 113435.58 | W39: 1365.11 | X39: 0 | Y39: 66.92641678 | Z39: 0 | AA39: 12667.66 | AC39: 1078.722872 | AD39: 1474.213211 | AE39: 1502.512143 | AF39: 1748.54366 | AG39: 1155.733017 | AH39: 12.45712838 | AI39: 133.4467891 | AJ39: 204.6278572 | AK39: 1174.21634 | AL39: 615.3669825 | AT39: 68.2 | CG39: 5077.02
A40: 40 | F40: (2) | G40: לא סחיר | J40: 0 | K40: 0 | L40: 0 | M40: 0 | N40: 0 | O40: 0 | P40: 0 | Q40: 0 | R40: 0 | S40: 0 | T40: 0 | U40: 0 | V40: 0 | W40: 0 | X40: 0 | Y40: 0 | Z40: 0 | AA40: 0 | AB40: 0 | AC40: 0 | AD40: 0 | AE40: 0 | AF40: 0 | AG40: 0 | AH40: 0 | AI40: 0 | AJ40: 0 | AK40: 0 | AL40: 0 | AM40: 0 | AN40: 0 | AO40: 0 | AP40: 0 | AQ40: 0 | AR40: 0 | AS40: 0 | AT40: 0 | AU40: 0 | AV40: 0 | AW40: 0 | AX40: 0 | AY40: 0 | AZ40: 0 | BA40: 0 | BB40: 0 | BC40: 0 | BD40: 0 | BE40: 0 | BF40: 0 | BG40: 0 | BH40: 0 | BI40: 0 | BJ40: 0 | BK40: 0 | BL40: 0 | BM40: 0 | BN40: 0 | BO40: 0 | BP40: 0 | BQ40: 0 | BR40: 0 | BS40: 0 | BT40: 0 | BU40: 0 | BV40: 0 | BW40: 0 | BX40: 0 | BY40: 0 | BZ40: 0 | CA40: 0 | CB40: 0 | CC40: 0 | CD40: 0 | CE40: 0 | CF40: 0 | CG40: 0
A41: 41 | G41: (א) | H41: ממשלת ישראל שהונפקו בחו"ל | J41: 0 | K41: 0 | L41: 0 | M41: 0 | N41: 0 | P41: 0 | S41: 0 | T41: 0 | X41: 0 | Y41: 0 | Z41: 0 | AC41: 0 | AD41: 0 | AE41: 0 | AF41: 0 | AG41: 0 | AH41: 0 | AI41: 0 | AJ41: 0 | AK41: 0 | AL41: 0 | CG41: 0
A42: 42 | G42: (ב) | H42: שהנפיקה ממשלה זרה | J42: 0 | K42: 0 | L42: 0 | M42: 0 | N42: 0 | P42: 0 | S42: 0 | T42: 0 | X42: 0 | Y42: 0 | Z42: 0 | AC42: 0 | AD42: 0 | AE42: 0 | AF42: 0 | AG42: 0 | AH42: 0 | AI42: 0 | AJ42: 0 | AK42: 0 | AL42: 0 | CG42: 0
A43: 43 | AC43: 0 | AD43: 0 | AE43: 0 | AF43: 0 | AG43: 0 | AH43: 0 | AI43: 0 | AJ43: 0 | AK43: 0 | AL43: 0 | CG43: 0
A44: 44 | D44: (2 | E44: תעודות חוב מסחריות: | J44: 0 | K44: 0 | L44: 0 | M44: 0 | N44: 0 | O44: 0 | P44: 0 | Q44: 0 | R44: 0 | S44: 0 | T44: 0 | U44: 0 | V44: 0 | W44: 0 | X44: 0 | Y44: 0 | Z44: 0 | AA44: 0 | AB44: 0 | AC44: 0 | AD44: 0 | AE44: 0 | AF44: 0 | AG44: 0 | AH44: 0 | AI44: 0 | AJ44: 0 | AK44: 0 | AL44: 0 | AM44: 0 | AN44: 0 | AO44: 0 | AP44: 0 | AQ44: 0 | AR44: 0 | AS44: 0 | AT44: 0 | AU44: 0 | AV44: 0 | AW44: 0 | AX44: 0 | AY44: 0 | AZ44: 0 | BA44: 0 | BB44: 0 | BC44: 0 | BD44: 0 | BE44: 0 | BF44: 0 | BG44: 0 | BH44: 0 | BI44: 0 | BJ44: 0 | BK44: 0 | BL44: 0 | BM44: 0 | BN44: 0 | BO44: 0 | BP44: 0 | BQ44: 0 | BR44: 0 | BS44: 0 | BT44: 0 | BU44: 0 | BV44: 0 | BW44: 0 | BX44: 0 | BY44: 0 | BZ44: 0 | CA44: 0 | CB44: 0 | CC44: 0 | CD44: 0 | CE44: 0 | CF44: 0 | CG44: 0
A45: 45 | E45: א) | F45: בישראל | J45: 0 | K45: 0 | L45: 0 | M45: 0 | N45: 0 | O45: 0 | P45: 0 | Q45: 0 | R45: 0 | S45: 0 | T45: 0 | U45: 0 | V45: 0 | W45: 0 | X45: 0 | Y45: 0 | Z45: 0 | AA45: 0 | AB45: 0 | AC45: 0 | AD45: 0 | AE45: 0 | AF45: 0 | AG45: 0 | AH45: 0 | AI45: 0 | AJ45: 0 | AK45: 0 | AL45: 0 | AM45: 0 | AN45: 0 | AO45: 0 | AP45: 0 | AQ45: 0 | AR45: 0 | AS45: 0 | AT45: 0 | AU45: 0 | AV45: 0 | AW45: 0 | AX45: 0 | AY45: 0 | AZ45: 0 | BA45: 0 | BB45: 0 | BC45: 0 | BD45: 0 | BE45: 0 | BF45: 0 | BG45: 0 | BH45: 0 | BI45: 0 | BJ45: 0 | BK45: 0 | BL45: 0 | BM45: 0 | BN45: 0 | BO45: 0 | BP45: 0 | BQ45: 0 | BR45: 0 | BS45: 0 | BT45: 0 | BU45: 0 | BV45: 0 | BW45: 0 | BX45: 0 | BY45: 0 | BZ45: 0 | CA45: 0 | CB45: 0 | CC45: 0 | CD45: 0 | CE45: 0 | CF45: 0 | CG45: 0
A46: 46 | F46: (1) | G46: סחיר | J46: 0 | K46: 0 | L46: 0 | M46: 0 | N46: 0 | O46: 0 | P46: 0 | Q46: 0 | R46: 0 | S46: 0 | T46: 0 | U46: 0 | V46: 0 | W46: 0 | X46: 0 | Y46: 0 | Z46: 0 | AA46: 0 | AB46: 0 | AC46: 0 | AD46: 0 | AE46: 0 | AF46: 0 | AG46: 0 | AH46: 0 | AI46: 0 | AJ46: 0 | AK46: 0 | AL46: 0 | AM46: 0 | AN46: 0 | AO46: 0 | AP46: 0 | AQ46: 0 | AR46: 0 | AS46: 0 | AT46: 0 | AU46: 0 | AV46: 0 | AW46: 0 | AX46: 0 | AY46: 0 | AZ46: 0 | BA46: 0 | BB46: 0 | BC46: 0 | BD46: 0 | BE46: 0 | BF46: 0 | BG46: 0 | BH46: 0 | BI46: 0 | BJ46: 0 | BK46: 0 | BL46: 0 | BM46: 0 | BN46: 0 | BO46: 0 | BP46: 0 | BQ46: 0 | BR46: 0 | BS46: 0 | BT46: 0 | BU46: 0 | BV46: 0 | BW46: 0 | BX46: 0 | BY46: 0 | BZ46: 0 | CA46: 0 | CB46: 0 | CC46: 0 | CD46: 0 | CE46: 0 | CF46: 0 | CG46: 0
A47: 47 | G47: (א) | H47: דרוג AA- ומעלה | J47: 0 | K47: 0 | L47: 0 | M47: 0 | N47: 0 | O47: 0 | P47: 0 | Q47: 0 | R47: 0 | S47: 0 | T47: 0 | U47: 0 | V47: 0 | W47: 0 | X47: 0 | Y47: 0 | Z47: 0 | AA47: 0 | AB47: 0 | AC47: 0 | AD47: 0 | AE47: 0 | AF47: 0 | AG47: 0 | AH47: 0 | AI47: 0 | AJ47: 0 | AK47: 0 | AL47: 0 | AM47: 0 | AN47: 0 | AO47: 0 | AP47: 0 | AQ47: 0 | AR47: 0 | AS47: 0 | AT47: 0 | AU47: 0 | AV47: 0 | AW47: 0 | AX47: 0 | AY47: 0 | AZ47: 0 | BA47: 0 | BB47: 0 | BC47: 0 | BD47: 0 | BE47: 0 | BF47: 0 | BG47: 0 | BH47: 0 | BI47: 0 | BJ47: 0 | BK47: 0 | BL47: 0 | BM47: 0 | BN47: 0 | BO47: 0 | BP47: 0 | BQ47: 0 | BR47: 0 | BS47: 0 | BT47: 0 | BU47: 0 | BV47: 0 | BW47: 0 | BX47: 0 | BY47: 0 | BZ47: 0 | CA47: 0 | CB47: 0 | CC47: 0 | CD47: 0 | CE47: 0 | CF47: 0 | CG47: 0
A48: 48 | H48: a | I48: צמוד מדד | J48: 0 | K48: 0 | L48: 0 | M48: 0 | N48: 0 | P48: 0 | S48: 0 | T48: 0 | X48: 0 | Y48: 0 | Z48: 0 | AC48: 0 | AD48: 0 | AE48: 0 | AF48: 0 | AG48: 0 | AH48: 0 | AI48: 0 | AJ48: 0 | AK48: 0 | AL48: 0 | CG48: 0
A49: 49 | H49: b | I49: לא צמוד | J49: 0 | K49: 0 | L49: 0 | M49: 0 | N49: 0 | P49: 0 | S49: 0 | T49: 0 | X49: 0 | Y49: 0 | Z49: 0 | AC49: 0 | AD49: 0 | AE49: 0 | AF49: 0 | AG49: 0 | AH49: 0 | AI49: 0 | AJ49: 0 | AK49: 0 | AL49: 0 | CG49: 0
A50: 50 | H50: c | I50: צמוד מט"ח | J50: 0 | K50: 0 | L50: 0 | M50: 0 | N50: 0 | P50: 0 | S50: 0 | T50: 0 | X50: 0 | Y50: 0 | Z50: 0 | AC50: 0 | AD50: 0 | AE50: 0 | AF50: 0 | AG50: 0 | AH50: 0 | AI50: 0 | AJ50: 0 | AK50: 0 | AL50: 0 | CG50: 0
A51: 51 | G51: (ב) | H51: דרוג BBB- ועד A+ | J51: 0 | K51: 0 | L51: 0 | M51: 0 | N51: 0 | O51: 0 | P51: 0 | Q51: 0 | R51: 0 | S51: 0 | T51: 0 | U51: 0 | V51: 0 | W51: 0 | X51: 0 | Y51: 0 | Z51: 0 | AA51: 0 | AB51: 0 | AC51: 0 | AD51: 0 | AE51: 0 | AF51: 0 | AG51: 0 | AH51: 0 | AI51: 0 | AJ51: 0 | AK51: 0 | AL51: 0 | AM51: 0 | AN51: 0 | AO51: 0 | AP51: 0 | AQ51: 0 | AR51: 0 | AS51: 0 | AT51: 0 | AU51: 0 | AV51: 0 | AW51: 0 | AX51: 0 | AY51: 0 | AZ51: 0 | BA51: 0 | BB51: 0 | BC51: 0 | BD51: 0 | BE51: 0 | BF51: 0 | BG51: 0 | BH51: 0 | BI51: 0 | BJ51: 0 | BK51: 0 | BL51: 0 | BM51: 0 | BN51: 0 | BO51: 0 | BP51: 0 | BQ51: 0 | BR51: 0 | BS51: 0 | BT51: 0 | BU51: 0 | BV51: 0 | BW51: 0 | BX51: 0 | BY51: 0 | BZ51: 0 | CA51: 0 | CB51: 0 | CC51: 0 | CD51: 0 | CE51: 0 | CF51: 0 | CG51: 0
A52: 52 | H52: a | I52: צמוד מדד | J52: 0 | K52: 0 | L52: 0 | M52: 0 | N52: 0 | P52: 0 | S52: 0 | T52: 0 | X52: 0 | Y52: 0 | Z52: 0 | AC52: 0 | AD52: 0 | AE52: 0 | AF52: 0 | AG52: 0 | AH52: 0 | AI52: 0 | AJ52: 0 | AK52: 0 | AL52: 0 | CG52: 0
A53: 53 | H53: b | I53: לא צמוד | J53: 0 | K53: 0 | L53: 0 | M53: 0 | N53: 0 | P53: 0 | S53: 0 | T53: 0 | X53: 0 | Y53: 0 | Z53: 0 | AC53: 0 | AD53: 0 | AE53: 0 | AF53: 0 | AG53: 0 | AH53: 0 | AI53: 0 | AJ53: 0 | AK53: 0 | AL53: 0 | CG53: 0
A54: 54 | H54: c | I54: צמוד מט"ח | J54: 0 | K54: 0 | L54: 0 | M54: 0 | N54: 0 | P54: 0 | S54: 0 | T54: 0 | X54: 0 | Y54: 0 | Z54: 0 | AC54: 0 | AD54: 0 | AE54: 0 | AF54: 0 | AG54: 0 | AH54: 0 | AI54: 0 | AJ54: 0 | AK54: 0 | AL54: 0 | CG54: 0
A55: 55 | G55: (ג) | H55: דרוג נמוך מ- BBB- או לא מדורג | J55: 0 | K55: 0 | L55: 0 | M55: 0 | N55: 0 | O55: 0 | P55: 0 | Q55: 0 | R55: 0 | S55: 0 | T55: 0 | U55: 0 | V55: 0 | W55: 0 | X55: 0 | Y55: 0 | Z55: 0 | AA55: 0 | AB55: 0 | AC55: 0 | AD55: 0 | AE55: 0 | AF55: 0 | AG55: 0 | AH55: 0 | AI55: 0 | AJ55: 0 | AK55: 0 | AL55: 0 | AM55: 0 | AN55: 0 | AO55: 0 | AP55: 0 | AQ55: 0 | AR55: 0 | AS55: 0 | AT55: 0 | AU55: 0 | AV55: 0 | AW55: 0 | AX55: 0 | AY55: 0 | AZ55: 0 | BA55: 0 | BB55: 0 | BC55: 0 | BD55: 0 | BE55: 0 | BF55: 0 | BG55: 0 | BH55: 0 | BI55: 0 | BJ55: 0 | BK55: 0 | BL55: 0 | BM55: 0 | BN55: 0 | BO55: 0 | BP55: 0 | BQ55: 0 | BR55: 0 | BS55: 0 | BT55: 0 | BU55: 0 | BV55: 0 | BW55: 0 | BX55: 0 | BY55: 0 | BZ55: 0 | CA55: 0 | CB55: 0 | CC55: 0 | CD55: 0 | CE55: 0 | CF55: 0 | CG55: 0
A56: 56 | H56: a | I56: צמוד מדד | J56: 0 | K56: 0 | L56: 0 | M56: 0 | N56: 0 | P56: 0 | S56: 0 | T56: 0 | X56: 0 | Y56: 0 | Z56: 0 | AC56: 0 | AD56: 0 | AE56: 0 | AF56: 0 | AG56: 0 | AH56: 0 | AI56: 0 | AJ56: 0 | AK56: 0 | AL56: 0 | CG56: 0
A57: 57 | H57: b | I57: לא צמוד | J57: 0 | K57: 0 | L57: 0 | M57: 0 | N57: 0 | P57: 0 | S57: 0 | T57: 0 | X57: 0 | Y57: 0 | Z57: 0 | AC57: 0 | AD57: 0 | AE57: 0 | AF57: 0 | AG57: 0 | AH57: 0 | AI57: 0 | AJ57: 0 | AK57: 0 | AL57: 0 | CG57: 0
A58: 58 | H58: c | I58: צמוד מט"ח | J58: 0 | K58: 0 | L58: 0 | M58: 0 | N58: 0 | P58: 0 | S58: 0 | T58: 0 | X58: 0 | Y58: 0 | Z58: 0 | AC58: 0 | AD58: 0 | AE58: 0 | AF58: 0 | AG58: 0 | AH58: 0 | AI58: 0 | AJ58: 0 | AK58: 0 | AL58: 0 | CG58: 0
A59: 59 | F59: (2) | G59: לא סחיר | J59: 0 | K59: 0 | L59: 0 | M59: 0 | N59: 0 | O59: 0 | P59: 0 | Q59: 0 | R59: 0 | S59: 0 | T59: 0 | U59: 0 | V59: 0 | W59: 0 | X59: 0 | Y59: 0 | Z59: 0 | AA59: 0 | AB59: 0 | AC59: 0 | AD59: 0 | AE59: 0 | AF59: 0 | AG59: 0 | AH59: 0 | AI59: 0 | AJ59: 0 | AK59: 0 | AL59: 0 | AM59: 0 | AN59: 0 | AO59: 0 | AP59: 0 | AQ59: 0 | AR59: 0 | AS59: 0 | AT59: 0 | AU59: 0 | AV59: 0 | AW59: 0 | AX59: 0 | AY59: 0 | AZ59: 0 | BA59: 0 | BB59: 0 | BC59: 0 | BD59: 0 | BE59: 0 | BF59: 0 | BG59: 0 | BH59: 0 | BI59: 0 | BJ59: 0 | BK59: 0 | BL59: 0 | BM59: 0 | BN59: 0 | BO59: 0 | BP59: 0 | BQ59: 0 | BR59: 0 | BS59: 0 | BT59: 0 | BU59: 0 | BV59: 0 | BW59: 0 | BX59: 0 | BY59: 0 | BZ59: 0 | CA59: 0 | CB59: 0 | CC59: 0 | CD59: 0 | CE59: 0 | CF59: 0 | CG59: 0
A60: 60 | G60: (א) | H60: =$H$47 -> דרוג AA- ומעלה | J60: 0 | K60: 0 | L60: 0 | M60: 0 | N60: 0 | O60: 0 | P60: 0 | Q60: 0 | R60: 0 | S60: 0 | T60: 0 | U60: 0 | V60: 0 | W60: 0 | X60: 0 | Y60: 0 | Z60: 0 | AA60: 0 | AB60: 0 | AC60: 0 | AD60: 0 | AE60: 0 | AF60: 0 | AG60: 0 | AH60: 0 | AI60: 0 | AJ60: 0 | AK60: 0 | AL60: 0 | AM60: 0 | AN60: 0 | AO60: 0 | AP60: 0 | AQ60: 0 | AR60: 0 | AS60: 0 | AT60: 0 | AU60: 0 | AV60: 0 | AW60: 0 | AX60: 0 | AY60: 0 | AZ60: 0 | BA60: 0 | BB60: 0 | BC60: 0 | BD60: 0 | BE60: 0 | BF60: 0 | BG60: 0 | BH60: 0 | BI60: 0 | BJ60: 0 | BK60: 0 | BL60: 0 | BM60: 0 | BN60: 0 | BO60: 0 | BP60: 0 | BQ60: 0 | BR60: 0 | BS60: 0 | BT60: 0 | BU60: 0 | BV60: 0 | BW60: 0 | BX60: 0 | BY60: 0 | BZ60: 0 | CA60: 0 | CB60: 0 | CC60: 0 | CD60: 0 | CE60: 0 | CF60: 0 | CG60: 0
A61: 61 | H61: a | I61: צמוד מדד | J61: 0 | K61: 0 | L61: 0 | M61: 0 | N61: 0 | P61: 0 | S61: 0 | T61: 0 | X61: 0 | Y61: 0 | Z61: 0 | AC61: 0 | AD61: 0 | AE61: 0 | AF61: 0 | AG61: 0 | AH61: 0 | AI61: 0 | AJ61: 0 | AK61: 0 | AL61: 0 | CG61: 0
A62: 62 | H62: b | I62: לא צמוד | J62: 0 | K62: 0 | L62: 0 | M62: 0 | N62: 0 | P62: 0 | S62: 0 | T62: 0 | X62: 0 | Y62: 0 | Z62: 0 | AC62: 0 | AD62: 0 | AE62: 0 | AF62: 0 | AG62: 0 | AH62: 0 | AI62: 0 | AJ62: 0 | AK62: 0 | AL62: 0 | CG62: 0
A63: 63 | H63: c | I63: צמוד מט"ח | J63: 0 | K63: 0 | L63: 0 | M63: 0 | N63: 0 | P63: 0 | S63: 0 | T63: 0 | X63: 0 | Y63: 0 | Z63: 0 | AC63: 0 | AD63: 0 | AE63: 0 | AF63: 0 | AG63: 0 | AH63: 0 | AI63: 0 | AJ63: 0 | AK63: 0 | AL63: 0 | CG63: 0
A64: 64 | G64: (ב) | H64: =$H$51 -> דרוג BBB- ועד A+ | J64: 0 | K64: 0 | L64: 0 | M64: 0 | N64: 0 | O64: 0 | P64: 0 | Q64: 0 | R64: 0 | S64: 0 | T64: 0 | U64: 0 | V64: 0 | W64: 0 | X64: 0 | Y64: 0 | Z64: 0 | AA64: 0 | AB64: 0 | AC64: 0 | AD64: 0 | AE64: 0 | AF64: 0 | AG64: 0 | AH64: 0 | AI64: 0 | AJ64: 0 | AK64: 0 | AL64: 0 | AM64: 0 | AN64: 0 | AO64: 0 | AP64: 0 | AQ64: 0 | AR64: 0 | AS64: 0 | AT64: 0 | AU64: 0 | AV64: 0 | AW64: 0 | AX64: 0 | AY64: 0 | AZ64: 0 | BA64: 0 | BB64: 0 | BC64: 0 | BD64: 0 | BE64: 0 | BF64: 0 | BG64: 0 | BH64: 0 | BI64: 0 | BJ64: 0 | BK64: 0 | BL64: 0 | BM64: 0 | BN64: 0 | BO64: 0 | BP64: 0 | BQ64: 0 | BR64: 0 | BS64: 0 | BT64: 0 | BU64: 0 | BV64: 0 | BW64: 0 | BX64: 0 | BY64: 0 | BZ64: 0 | CA64: 0 | CB64: 0 | CC64: 0 | CD64: 0 | CE64: 0 | CF64: 0 | CG64: 0
A65: 65 | H65: a | I65: צמוד מדד | J65: 0 | K65: 0 | L65: 0 | M65: 0 | N65: 0 | P65: 0 | S65: 0 | T65: 0 | X65: 0 | Y65: 0 | Z65: 0 | AC65: 0 | AD65: 0 | AE65: 0 | AF65: 0 | AG65: 0 | AH65: 0 | AI65: 0 | AJ65: 0 | AK65: 0 | AL65: 0 | CG65: 0
A66: 66 | H66: b | I66: לא צמוד | J66: 0 | K66: 0 | L66: 0 | M66: 0 | N66: 0 | P66: 0 | S66: 0 | T66: 0 | X66: 0 | Y66: 0 | Z66: 0 | AC66: 0 | AD66: 0 | AE66: 0 | AF66: 0 | AG66: 0 | AH66: 0 | AI66: 0 | AJ66: 0 | AK66: 0 | AL66: 0 | CG66: 0
A67: 67 | H67: c | I67: צמוד מט"ח | J67: 0 | K67: 0 | L67: 0 | M67: 0 | N67: 0 | P67: 0 | S67: 0 | T67: 0 | X67: 0 | Y67: 0 | Z67: 0 | AC67: 0 | AD67: 0 | AE67: 0 | AF67: 0 | AG67: 0 | AH67: 0 | AI67: 0 | AJ67: 0 | AK67: 0 | AL67: 0 | CG67: 0
A68: 68 | G68: (ג) | H68: בדרוג נמוך מ- BBB- או לא מדורג עם בטוחה מספקת | J68: 0 | K68: 0 | L68: 0 | M68: 0 | N68: 0 | O68: 0 | P68: 0 | Q68: 0 | R68: 0 | S68: 0 | T68: 0 | U68: 0 | V68: 0 | W68: 0 | X68: 0 | Y68: 0 | Z68: 0 | AA68: 0 | AB68: 0 | AC68: 0 | AD68: 0 | AE68: 0 | AF68: 0 | AG68: 0 | AH68: 0 | AI68: 0 | AJ68: 0 | AK68: 0 | AL68: 0 | AM68: 0 | AN68: 0 | AO68: 0 | AP68: 0 | AQ68: 0 | AR68: 0 | AS68: 0 | AT68: 0 | AU68: 0 | AV68: 0 | AW68: 0 | AX68: 0 | AY68: 0 | AZ68: 0 | BA68: 0 | BB68: 0 | BC68: 0 | BD68: 0 | BE68: 0 | BF68: 0 | BG68: 0 | BH68: 0 | BI68: 0 | BJ68: 0 | BK68: 0 | BL68: 0 | BM68: 0 | BN68: 0 | BO68: 0 | BP68: 0 | BQ68: 0 | BR68: 0 | BS68: 0 | BT68: 0 | BU68: 0 | BV68: 0 | BW68: 0 | BX68: 0 | BY68: 0 | BZ68: 0 | CA68: 0 | CB68: 0 | CC68: 0 | CD68: 0 | CE68: 0 | CF68: 0 | CG68: 0
A69: 69 | H69: a | I69: צמוד מדד | J69: 0 | K69: 0 | L69: 0 | M69: 0 | N69: 0 | P69: 0 | S69: 0 | T69: 0 | X69: 0 | Y69: 0 | Z69: 0 | AC69: 0 | AD69: 0 | AE69: 0 | AF69: 0 | AG69: 0 | AH69: 0 | AI69: 0 | AJ69: 0 | AK69: 0 | AL69: 0 | CG69: 0
A70: 70 | H70: b | I70: לא צמוד | J70: 0 | K70: 0 | L70: 0 | M70: 0 | N70: 0 | P70: 0 | S70: 0 | T70: 0 | X70: 0 | Y70: 0 | Z70: 0 | AC70: 0 | AD70: 0 | AE70: 0 | AF70: 0 | AG70: 0 | AH70: 0 | AI70: 0 | AJ70: 0 | AK70: 0 | AL70: 0 | CG70: 0
A71: 71 | H71: c | I71: צמוד מט"ח | J71: 0 | K71: 0 | L71: 0 | M71: 0 | N71: 0 | P71: 0 | S71: 0 | T71: 0 | X71: 0 | Y71: 0 | Z71: 0 | AC71: 0 | AD71: 0 | AE71: 0 | AF71: 0 | AG71: 0 | AH71: 0 | AI71: 0 | AJ71: 0 | AK71: 0 | AL71: 0 | CG71: 0
A72: 72 | G72: (ד) | H72: =$H$55 -> דרוג נמוך מ- BBB- או לא מדורג | J72: 0 | K72: 0 | L72: 0 | M72: 0 | N72: 0 | O72: 0 | P72: 0 | Q72: 0 | R72: 0 | S72: 0 | T72: 0 | U72: 0 | V72: 0 | W72: 0 | X72: 0 | Y72: 0 | Z72: 0 | AA72: 0 | AB72: 0 | AC72: 0 | AD72: 0 | AE72: 0 | AF72: 0 | AG72: 0 | AH72: 0 | AI72: 0 | AJ72: 0 | AK72: 0 | AL72: 0 | AM72: 0 | AN72: 0 | AO72: 0 | AP72: 0 | AQ72: 0 | AR72: 0 | AS72: 0 | AT72: 0 | AU72: 0 | AV72: 0 | AW72: 0 | AX72: 0 | AY72: 0 | AZ72: 0 | BA72: 0 | BB72: 0 | BC72: 0 | BD72: 0 | BE72: 0 | BF72: 0 | BG72: 0 | BH72: 0 | BI72: 0 | BJ72: 0 | BK72: 0 | BL72: 0 | BM72: 0 | BN72: 0 | BO72: 0 | BP72: 0 | BQ72: 0 | BR72: 0 | BS72: 0 | BT72: 0 | BU72: 0 | BV72: 0 | BW72: 0 | BX72: 0 | BY72: 0 | BZ72: 0 | CA72: 0 | CB72: 0 | CC72: 0 | CD72: 0 | CE72: 0 | CF72: 0 | CG72: 0
A73: 73 | H73: a | I73: צמוד מדד | J73: 0 | K73: 0 | L73: 0 | M73: 0 | N73: 0 | P73: 0 | S73: 0 | T73: 0 | X73: 0 | Y73: 0 | Z73: 0 | AC73: 0 | AD73: 0 | AE73: 0 | AF73: 0 | AG73: 0 | AH73: 0 | AI73: 0 | AJ73: 0 | AK73: 0 | AL73: 0 | CG73: 0
A74: 74 | H74: b | I74: לא צמוד | J74: 0 | K74: 0 | L74: 0 | M74: 0 | N74: 0 | P74: 0 | S74: 0 | T74: 0 | X74: 0 | Y74: 0 | Z74: 0 | AC74: 0 | AD74: 0 | AE74: 0 | AF74: 0 | AG74: 0 | AH74: 0 | AI74: 0 | AJ74: 0 | AK74: 0 | AL74: 0 | CG74: 0
A75: =A74+1 -> 75 | H75: c | I75: צמוד מט"ח | J75: 0 | K75: 0 | L75: 0 | M75: 0 | N75: 0 | P75: 0 | S75: 0 | T75: 0 | X75: 0 | Y75: 0 | Z75: 0 | AC75: 0 | AD75: 0 | AE75: 0 | AF75: 0 | AG75: 0 | AH75: 0 | AI75: 0 | AJ75: 0 | AK75: 0 | AL75: 0 | CG75: 0
A76: 76 | E76: ב) | F76: בחו"ל | J76: 0 | K76: 0 | L76: 0 | M76: 0 | N76: 0 | O76: 0 | P76: 0 | Q76: 0 | R76: 0 | S76: 0 | T76: 0 | U76: 0 | V76: 0 | W76: 0 | X76: 0 | Y76: 0 | Z76: 0 | AA76: 0 | AB76: 0 | AC76: 0 | AD76: 0 | AE76: 0 | AF76: 0 | AG76: 0 | AH76: 0 | AI76: 0 | AJ76: 0 | AK76: 0 | AL76: 0 | AM76: 0 | AN76: 0 | AO76: 0 | AP76: 0 | AQ76: 0 | AR76: 0 | AS76: 0 | AT76: 0 | AU76: 0 | AV76: 0 | AW76: 0 | AX76: 0 | AY76: 0 | AZ76: 0 | BA76: 0 | BB76: 0 | BC76: 0 | BD76: 0 | BE76: 0 | BF76: 0 | BG76: 0 | BH76: 0 | BI76: 0 | BJ76: 0 | BK76: 0 | BL76: 0 | BM76: 0 | BN76: 0 | BO76: 0 | BP76: 0 | BQ76: 0 | BR76: 0 | BS76: 0 | BT76: 0 | BU76: 0 | BV76: 0 | BW76: 0 | BX76: 0 | BY76: 0 | BZ76: 0 | CA76: 0 | CB76: 0 | CC76: 0 | CD76: 0 | CE76: 0 | CF76: 0 | CG76: 0
A77: 77 | F77: (1) | G77: סחיר - חברות ישראליות | J77: 0 | K77: 0 | L77: 0 | M77: 0 | N77: 0 | O77: 0 | P77: 0 | Q77: 0 | R77: 0 | S77: 0 | T77: 0 | U77: 0 | V77: 0 | W77: 0 | X77: 0 | Y77: 0 | Z77: 0 | AA77: 0 | AB77: 0 | AC77: 0 | AD77: 0 | AE77: 0 | AF77: 0 | AG77: 0 | AH77: 0 | AI77: 0 | AJ77: 0 | AK77: 0 | AL77: 0 | AM77: 0 | AN77: 0 | AO77: 0 | AP77: 0 | AQ77: 0 | AR77: 0 | AS77: 0 | AT77: 0 | AU77: 0 | AV77: 0 | AW77: 0 | AX77: 0 | AY77: 0 | AZ77: 0 | BA77: 0 | BB77: 0 | BC77: 0 | BD77: 0 | BE77: 0 | BF77: 0 | BG77: 0 | BH77: 0 | BI77: 0 | BJ77: 0 | BK77: 0 | BL77: 0 | BM77: 0 | BN77: 0 | BO77: 0 | BP77: 0 | BQ77: 0 | BR77: 0 | BS77: 0 | BT77: 0 | BU77: 0 | BV77: 0 | BW77: 0 | BX77: 0 | BY77: 0 | BZ77: 0 | CA77: 0 | CB77: 0 | CC77: 0 | CD77: 0 | CE77: 0 | CF77: 0 | CG77: 0
A78: 78 | G78: (א) | H78: דרוג A- ומעלה | J78: 0 | K78: 0 | L78: 0 | M78: 0 | N78: 0 | P78: 0 | S78: 0 | T78: 0 | X78: 0 | Y78: 0 | Z78: 0 | AC78: 0 | AD78: 0 | AE78: 0 | AF78: 0 | AG78: 0 | AH78: 0 | AI78: 0 | AJ78: 0 | AK78: 0 | AL78: 0 | CG78: 0
A79: 79 | G79: (ב) | H79: דרוג BBB- ועד BBB+ | J79: 0 | K79: 0 | L79: 0 | M79: 0 | N79: 0 | P79: 0 | S79: 0 | T79: 0 | X79: 0 | Y79: 0 | Z79: 0 | AC79: 0 | AD79: 0 | AE79: 0 | AF79: 0 | AG79: 0 | AH79: 0 | AI79: 0 | AJ79: 0 | AK79: 0 | AL79: 0 | CG79: 0
A80: 80 | G80: (ג) | H80: דרוג נמוך מ- BBB- או לא מדורג | J80: 0 | K80: 0 | L80: 0 | M80: 0 | N80: 0 | P80: 0 | S80: 0 | T80: 0 | X80: 0 | Y80: 0 | Z80: 0 | AC80: 0 | AD80: 0 | AE80: 0 | AF80: 0 | AG80: 0 | AH80: 0 | AI80: 0 | AJ80: 0 | AK80: 0 | AL80: 0 | CG80: 0
A81: 81 | F81: (2) | G81: לא סחיר - חברות ישראליות | J81: 0 | K81: 0 | L81: 0 | M81: 0 | N81: 0 | O81: 0 | P81: 0 | Q81: 0 | R81: 0 | S81: 0 | T81: 0 | U81: 0 | V81: 0 | W81: 0 | X81: 0 | Y81: 0 | Z81: 0 | AA81: 0 | AB81: 0 | AC81: 0 | AD81: 0 | AE81: 0 | AF81: 0 | AG81: 0 | AH81: 0 | AI81: 0 | AJ81: 0 | AK81: 0 | AL81: 0 | AM81: 0 | AN81: 0 | AO81: 0 | AP81: 0 | AQ81: 0 | AR81: 0 | AS81: 0 | AT81: 0 | AU81: 0 | AV81: 0 | AW81: 0 | AX81: 0 | AY81: 0 | AZ81: 0 | BA81: 0 | BB81: 0 | BC81: 0 | BD81: 0 | BE81: 0 | BF81: 0 | BG81: 0 | BH81: 0 | BI81: 0 | BJ81: 0 | BK81: 0 | BL81: 0 | BM81: 0 | BN81: 0 | BO81: 0 | BP81: 0 | BQ81: 0 | BR81: 0 | BS81: 0 | BT81: 0 | BU81: 0 | BV81: 0 | BW81: 0 | BX81: 0 | BY81: 0 | BZ81: 0 | CA81: 0 | CB81: 0 | CC81: 0 | CD81: 0 | CE81: 0 | CF81: 0 | CG81: 0
A82: 82 | G82: (א) | H82: =$H$78 -> דרוג A- ומעלה | J82: 0 | K82: 0 | L82: 0 | M82: 0 | N82: 0 | P82: 0 | S82: 0 | T82: 0 | X82: 0 | Y82: 0 | Z82: 0 | AC82: 0 | AD82: 0 | AE82: 0 | AF82: 0 | AG82: 0 | AH82: 0 | AI82: 0 | AJ82: 0 | AK82: 0 | AL82: 0 | CG82: 0
A83: 83 | G83: (ב) | H83: =$H$79 -> דרוג BBB- ועד BBB+ | J83: 0 | K83: 0 | L83: 0 | M83: 0 | N83: 0 | P83: 0 | S83: 0 | T83: 0 | X83: 0 | Y83: 0 | Z83: 0 | AC83: 0 | AD83: 0 | AE83: 0 | AF83: 0 | AG83: 0 | AH83: 0 | AI83: 0 | AJ83: 0 | AK83: 0 | AL83: 0 | CG83: 0
A84: 84 | G84: (ג) | H84: =$H$68 -> בדרוג נמוך מ- BBB- או לא מדורג עם בטוחה מספקת | J84: 0 | K84: 0 | L84: 0 | M84: 0 | N84: 0 | P84: 0 | S84: 0 | T84: 0 | X84: 0 | Y84: 0 | Z84: 0 | AC84: 0 | AD84: 0 | AE84: 0 | AF84: 0 | AG84: 0 | AH84: 0 | AI84: 0 | AJ84: 0 | AK84: 0 | AL84: 0 | CG84: 0
A85: 85 | G85: (ד) | H85: =H80 -> דרוג נמוך מ- BBB- או לא מדורג | J85: 0 | K85: 0 | L85: 0 | M85: 0 | N85: 0 | P85: 0 | S85: 0 | T85: 0 | X85: 0 | Y85: 0 | Z85: 0 | AC85: 0 | AD85: 0 | AE85: 0 | AF85: 0 | AG85: 0 | AH85: 0 | AI85: 0 | AJ85: 0 | AK85: 0 | AL85: 0 | CG85: 0
A86: 86 | F86: (3) | G86: סחיר - חברות זרות | J86: 0 | K86: 0 | L86: 0 | M86: 0 | N86: 0 | O86: 0 | P86: 0 | Q86: 0 | R86: 0 | S86: 0 | T86: 0 | U86: 0 | V86: 0 | W86: 0 | X86: 0 | Y86: 0 | Z86: 0 | AA86: 0 | AB86: 0 | AC86: 0 | AD86: 0 | AE86: 0 | AF86: 0 | AG86: 0 | AH86: 0 | AI86: 0 | AJ86: 0 | AK86: 0 | AL86: 0 | AM86: 0 | AN86: 0 | AO86: 0 | AP86: 0 | AQ86: 0 | AR86: 0 | AS86: 0 | AT86: 0 | AU86: 0 | AV86: 0 | AW86: 0 | AX86: 0 | AY86: 0 | AZ86: 0 | BA86: 0 | BB86: 0 | BC86: 0 | BD86: 0 | BE86: 0 | BF86: 0 | BG86: 0 | BH86: 0 | BI86: 0 | BJ86: 0 | BK86: 0 | BL86: 0 | BM86: 0 | BN86: 0 | BO86: 0 | BP86: 0 | BQ86: 0 | BR86: 0 | BS86: 0 | BT86: 0 | BU86: 0 | BV86: 0 | BW86: 0 | BX86: 0 | BY86: 0 | BZ86: 0 | CA86: 0 | CB86: 0 | CC86: 0 | CD86: 0 | CE86: 0 | CF86: 0 | CG86: 0
A87: 87 | G87: (א) | H87: =$H$78 -> דרוג A- ומעלה | J87: 0 | K87: 0 | L87: 0 | M87: 0 | N87: 0 | P87: 0 | S87: 0 | T87: 0 | X87: 0 | Y87: 0 | Z87: 0 | AC87: 0 | AD87: 0 | AE87: 0 | AF87: 0 | AG87: 0 | AH87: 0 | AI87: 0 | AJ87: 0 | AK87: 0 | AL87: 0 | CG87: 0
A88: 88 | G88: (ב) | H88: =$H$79 -> דרוג BBB- ועד BBB+ | J88: 0 | K88: 0 | L88: 0 | M88: 0 | N88: 0 | P88: 0 | S88: 0 | T88: 0 | X88: 0 | Y88: 0 | Z88: 0 | AC88: 0 | AD88: 0 | AE88: 0 | AF88: 0 | AG88: 0 | AH88: 0 | AI88: 0 | AJ88: 0 | AK88: 0 | AL88: 0 | CG88: 0
A89: 89 | G89: (ג) | H89: =$H$80 -> דרוג נמוך מ- BBB- או לא מדורג | J89: 0 | K89: 0 | L89: 0 | M89: 0 | N89: 0 | P89: 0 | S89: 0 | T89: 0 | X89: 0 | Y89: 0 | Z89: 0 | AC89: 0 | AD89: 0 | AE89: 0 | AF89: 0 | AG89: 0 | AH89: 0 | AI89: 0 | AJ89: 0 | AK89: 0 | AL89: 0 | CG89: 0
A90: 90 | F90: (4) | G90: לא סחיר - חברות זרות | J90: 0 | K90: 0 | L90: 0 | M90: 0 | N90: 0 | O90: 0 | P90: 0 | Q90: 0 | R90: 0 | S90: 0 | T90: 0 | U90: 0 | V90: 0 | W90: 0 | X90: 0 | Y90: 0 | Z90: 0 | AA90: 0 | AB90: 0 | AC90: 0 | AD90: 0 | AE90: 0 | AF90: 0 | AG90: 0 | AH90: 0 | AI90: 0 | AJ90: 0 | AK90: 0 | AL90: 0 | AM90: 0 | AN90: 0 | AO90: 0 | AP90: 0 | AQ90: 0 | AR90: 0 | AS90: 0 | AT90: 0 | AU90: 0 | AV90: 0 | AW90: 0 | AX90: 0 | AY90: 0 | AZ90: 0 | BA90: 0 | BB90: 0 | BC90: 0 | BD90: 0 | BE90: 0 | BF90: 0 | BG90: 0 | BH90: 0 | BI90: 0 | BJ90: 0 | BK90: 0 | BL90: 0 | BM90: 0 | BN90: 0 | BO90: 0 | BP90: 0 | BQ90: 0 | BR90: 0 | BS90: 0 | BT90: 0 | BU90: 0 | BV90: 0 | BW90: 0 | BX90: 0 | BY90: 0 | BZ90: 0 | CA90: 0 | CB90: 0 | CC90: 0 | CD90: 0 | CE90: 0 | CF90: 0 | CG90: 0
A91: 91 | G91: (א) | H91: =$H$78 -> דרוג A- ומעלה | J91: 0 | K91: 0 | L91: 0 | M91: 0 | N91: 0 | P91: 0 | S91: 0 | T91: 0 | X91: 0 | Y91: 0 | Z91: 0 | AC91: 0 | AD91: 0 | AE91: 0 | AF91: 0 | AG91: 0 | AH91: 0 | AI91: 0 | AJ91: 0 | AK91: 0 | AL91: 0 | CG91: 0
A92: 92 | G92: (ב) | H92: =$H$79 -> דרוג BBB- ועד BBB+ | J92: 0 | K92: 0 | L92: 0 | M92: 0 | N92: 0 | P92: 0 | S92: 0 | T92: 0 | X92: 0 | Y92: 0 | Z92: 0 | AC92: 0 | AD92: 0 | AE92: 0 | AF92: 0 | AG92: 0 | AH92: 0 | AI92: 0 | AJ92: 0 | AK92: 0 | AL92: 0 | CG92: 0
A93: 93 | G93: (ג) | H93: =$H$68 -> בדרוג נמוך מ- BBB- או לא מדורג עם בטוחה מספקת | J93: 0 | K93: 0 | L93: 0 | M93: 0 | N93: 0 | P93: 0 | S93: 0 | T93: 0 | X93: 0 | Y93: 0 | Z93: 0 | AC93: 0 | AD93: 0 | AE93: 0 | AF93: 0 | AG93: 0 | AH93: 0 | AI93: 0 | AJ93: 0 | AK93: 0 | AL93: 0 | CG93: 0
A94: 94 | G94: (ד) | H94: =H89 -> דרוג נמוך מ- BBB- או לא מדורג | J94: 0 | K94: 0 | L94: 0 | M94: 0 | N94: 0 | P94: 0 | S94: 0 | T94: 0 | X94: 0 | Y94: 0 | Z94: 0 | AC94: 0 | AD94: 0 | AE94: 0 | AF94: 0 | AG94: 0 | AH94: 0 | AI94: 0 | AJ94: 0 | AK94: 0 | AL94: 0 | CG94: 0
A95: 95 | AC95: 0 | AD95: 0 | AE95: 0 | AF95: 0 | AG95: 0 | AH95: 0 | AI95: 0 | AJ95: 0 | AK95: 0 | AL95: 0 | CG95: 0
A96: 96 | D96: (3 | E96: אג"ח קונצרני: | J96: 8822445.34 | K96: 180.1301064 | L96: 65405.22364 | M96: 1922341.437 | N96: 65965.60968 | O96: 1944162.58 | P96: 200248.3845 | Q96: 1146891.76 | R96: 303375.12 | S96: 11.7669038 | T96: 1636.014685 | U96: 628165.46 | V96: 0 | W96: 199835.84 | X96: 101.9753152 | Y96: 12446.35553 | Z96: 0.7830961983 | AA96: 47805.04 | AB96: 0 | AC96: 165420.2513 | AD96: 183796.9722 | AE96: 251323.6854 | AF96: 338097.8735 | AG96: 209233.8637 | AH96: 1910.278684 | AI96: 16637.42776 | AJ96: 34227.89457 | AK96: 227046.1165 | AL96: 111406.0163 | AM96: 0 | AN96: 0 | AO96: 0 | AP96: 0 | AQ96: 0 | AR96: 0 | AS96: 0 | AT96: 2240.38 | AU96: 0 | AV96: 0 | AW96: 0 | AX96: 0 | AY96: 0 | AZ96: 0 | BA96: 0 | BB96: 0 | BC96: 0 | BD96: 0 | BE96: 0 | BF96: 0 | BG96: 0 | BH96: 0 | BI96: 0 | BJ96: 0 | BK96: 0 | BL96: 0 | BM96: 0 | BN96: 0 | BO96: 0 | BP96: 0 | BQ96: 0 | BR96: 0 | BS96: 0 | BT96: 0 | BU96: 0 | BV96: 0 | BW96: 0 | BX96: 0 | BY96: 0 | BZ96: 0 | CA96: 0 | CB96: 0 | CC96: 0 | CD96: 0 | CE96: 0 | CF96: 0 | CG96: 742531.1
A97: 97 | E97: א) | F97: בישראל | J97: 6110675.02 | K97: 131.1551364 | L97: 47622.41694 | M97: 1399682.476 | N97: 48030.4415 | O97: 1408197.13 | P97: 156225.8847 | Q97: 903630.33 | R97: 255429.64 | S97: 7.510191191 | T97: 1636.014685 | U97: 273.28 | V97: 0 | W97: 150965.29 | X97: 101.9753152 | Y97: 9710.155261 | Z97: 0.4998088086 | AA97: 60.85 | AB97: 0 | AC97: 122377.3621 | AD97: 129640.3012 | AE97: 192402.2538 | AF97: 268840.1312 | AG97: 163344.8875 | AH97: 1413.217936 | AI97: 11735.12882 | AJ97: 26203.35623 | AK97: 180536.7988 | AL97: 86972.5525 | AM97: 0 | AN97: 0 | AO97: 0 | AP97: 0 | AQ97: 0 | AR97: 0 | AS97: 0 | AT97: 0 | AU97: 0 | AV97: 0 | AW97: 0 | AX97: 0 | AY97: 0 | AZ97: 0 | BA97: 0 | BB97: 0 | BC97: 0 | BD97: 0 | BE97: 0 | BF97: 0 | BG97: 0 | BH97: 0 | BI97: 0 | BJ97: 0 | BK97: 0 | BL97: 0 | BM97: 0 | BN97: 0 | BO97: 0 | BP97: 0 | BQ97: 0 | BR97: 0 | BS97: 0 | BT97: 0 | BU97: 0 | BV97: 0 | BW97: 0 | BX97: 0 | BY97: 0 | BZ97: 0 | CA97: 0 | CB97: 0 | CC97: 0 | CD97: 0 | CE97: 0 | CF97: 0 | CG97: 545503.98
A98: 98 | F98: (1) | G98: סחיר | J98: 5704132.35 | K98: 112.4736371 | L98: 40839.16639 | M98: 1200314.247 | N98: 41189.07267 | O98: 1321834.81 | P98: 148310.3326 | Q98: 886736.45 | R98: 254600.24 | S98: 7.510191191 | T98: 1636.014685 | U98: 271.05 | V98: 0 | W98: 147573.76 | X98: 101.9753152 | Y98: 9218.167391 | Z98: 0.4998088086 | AA98: 48.12 | AB98: 0 | AC98: 116134.8014 | AD98: 122956.4206 | AE98: 182953.134 | AF98: 255462.1414 | AG98: 158466.5405 | AH98: 1341.128633 | AI98: 11130.09938 | AJ98: 24916.47602 | AK98: 171552.9486 | AL98: 84375.08954 | AM98: 0 | AN98: 0 | AO98: 0 | AP98: 0 | AQ98: 0 | AR98: 0 | AS98: 0 | AT98: 0 | AU98: 0 | AV98: 0 | AW98: 0 | AX98: 0 | AY98: 0 | AZ98: 0 | BA98: 0 | BB98: 0 | BC98: 0 | BD98: 0 | BE98: 0 | BF98: 0 | BG98: 0 | BH98: 0 | BI98: 0 | BJ98: 0 | BK98: 0 | BL98: 0 | BM98: 0 | BN98: 0 | BO98: 0 | BP98: 0 | BQ98: 0 | BR98: 0 | BS98: 0 | BT98: 0 | BU98: 0 | BV98: 0 | BW98: 0 | BX98: 0 | BY98: 0 | BZ98: 0 | CA98: 0 | CB98: 0 | CC98: 0 | CD98: 0 | CE98: 0 | CF98: 0 | CG98: 522049.68
A99: 99 | G99: (א) | H99: =$H$47 -> דרוג AA- ומעלה | J99: 4191371.19 | K99: 81.24595701 | L99: 29500.39888 | M99: 867053.6695 | N99: 29753.15563 | O99: 988958.49 | P99: 106754.6678 | Q99: 660505.52 | R99: 183654.63 | S99: 1.45328294 | T99: 766.4744659 | U99: 271.05 | V99: 0 | W99: 91010.61 | X99: 47.77553405 | Y99: 6635.292228 | Z99: 0.09671706035 | AA99: 48.12 | AB99: 0 | AC99: 82516.90201 | AD99: 88894.42572 | AE99: 132531.4303 | AF99: 186623.9106 | AG99: 115430.2038 | AH99: 952.9079886 | AI99: 8046.784277 | AJ99: 18049.51975 | AK99: 125325.3494 | AL99: 61460.50615 | AM99: 0 | AN99: 0 | AO99: 0 | AP99: 0 | AQ99: 0 | AR99: 0 | AS99: 0 | AT99: 0 | AU99: 0 | AV99: 0 | AW99: 0 | AX99: 0 | AY99: 0 | AZ99: 0 | BA99: 0 | BB99: 0 | BC99: 0 | BD99: 0 | BE99: 0 | BF99: 0 | BG99: 0 | BH99: 0 | BI99: 0 | BJ99: 0 | BK99: 0 | BL99: 0 | BM99: 0 | BN99: 0 | BO99: 0 | BP99: 0 | BQ99: 0 | BR99: 0 | BS99: 0 | BT99: 0 | BU99: 0 | BV99: 0 | BW99: 0 | BX99: 0 | BY99: 0 | BZ99: 0 | CA99: 0 | CB99: 0 | CC99: 0 | CD99: 0 | CE99: 0 | CF99: 0 | CG99: 406496.6
A100: 100 | H100: a | I100: צמוד מדד | J100: 3774572.56 | K100: 74.25085001 | L100: 26960.47623 | M100: 792402.1618 | N100: 27191.47115 | O100: 907474.86 | P100: 91004.0791 | Q100: 593061.78 | R100: 153680.35 | S100: 0.7407054983 | T100: 0 | W100: 71145.41 | X100: 0 | Y100: 5656.320903 | Z100: 0.04929450173 | AC100: 72816.87822 | AD100: 77945.72923 | AE100: 121532.4735 | AF100: 166696.1807 | AG100: 101669.6919 | AH100: 840.8917842 | AI100: 7055.700774 | AJ100: 16551.56649 | AK100: 111943.0893 | AL100: 54133.75806 | CG100: 374734.65
A101: 101 | H101: b | I101: לא צמוד | J101: 379855.17 | K101: 6.273640233 | L101: 2277.958143 | M101: 66952.04274 | N101: 2297.475482 | O101: 72666.05 | P101: 14866.33886 | Q101: 61681.19 | R101: 28481.03 | S101: 0.7032014224 | T101: 766.4744659 | W101: 19173.91 | X101: 47.77553405 | Y101: 924.0111438 | Z101: 0.04679857759 | AC101: 8992.494369 | AD101: 10191.32434 | AE101: 9818.072012 | AF101: 18308.00759 | AG101: 12772.62804 | AH101: 103.8456306 | AI101: 922.5256569 | AJ101: 1337.127988 | AK101: 12294.55241 | AL101: 6800.751955 | CG101: 28172.56
A102: 102 | H102: c | I102: צמוד מט"ח | J102: 36943.46 | K102: 0.7214667632 | L102: 261.9645097 | M102: 7699.465026 | N102: 264.2089979 | O102: 8817.58 | P102: 884.2498182 | Q102: 5762.55 | R102: 1493.25 | S102: 0.009376018965 | T102: 0 | U102: 271.05 | W102: 691.29 | X102: 0 | Y102: 54.96018178 | Z102: 0.0006239810345 | AA102: 48.12 | AC102: 707.5294261 | AD102: 757.3721541 | AE102: 1180.884735 | AF102: 1619.722304 | AG102: 987.8838578 | AH102: 8.170573857 | AI102: 68.55784591 | AJ102: 160.8252647 | AK102: 1087.707696 | AL102: 525.9961422 | CG102: 3589.39
A103: 103 | H103: d | I103: אחר | J103: 0 | K103: 0 | L103: 0 | M103: 0 | N103: 0 | P103: 0 | S103: 0 | T103: 0 | X103: 0 | Y103: 0 | Z103: 0 | AC103: 0 | AD103: 0 | AE103: 0 | AF103: 0 | AG103: 0 | AH103: 0 | AI103: 0 | AJ103: 0 | AK103: 0 | AL103: 0 | CG103: 0
A104: 104 | G104: (ב) | H104: =$H$51 -> דרוג BBB- ועד A+ | J104: 1461471.88 | K104: 29.89240401 | L104: 10853.92891 | M104: 319010.5643 | N104: 10946.92439 | O104: 321976.66 | P104: 40380.66638 | Q104: 219858.81 | R104: 69418.89 | S104: 5.409962943 | T104: 869.5402188 | U104: 0 | V104: 0 | W104: 53767.29 | X104: 54.19978118 | Y104: 2509.84362 | Z104: 0.3600370569 | AA104: 0 | AB104: 0 | AC104: 32324.21882 | AD104: 32970.89226 | AE104: 48196.7247 | AF104: 66509.58127 | AG104: 41711.84087 | AH104: 373.2811774 | AI104: 2984.54774 | AJ104: 6563.935305 | AK104: 44663.81873 | AL104: 22209.35913 | AM104: 0 | AN104: 0 | AO104: 0 | AP104: 0 | AQ104: 0 | AR104: 0 | AS104: 0 | AT104: 0 | AU104: 0 | AV104: 0 | AW104: 0 | AX104: 0 | AY104: 0 | AZ104: 0 | BA104: 0 | BB104: 0 | BC104: 0 | BD104: 0 | BE104: 0 | BF104: 0 | BG104: 0 | BH104: 0 | BI104: 0 | BJ104: 0 | BK104: 0 | BL104: 0 | BM104: 0 | BN104: 0 | BO104: 0 | BP104: 0 | BQ104: 0 | BR104: 0 | BS104: 0 | BT104: 0 | BU104: 0 | BV104: 0 | BW104: 0 | BX104: 0 | BY104: 0 | BZ104: 0 | CA104: 0 | CB104: 0 | CC104: 0 | CD104: 0 | CE104: 0 | CF104: 0 | CG104: 113280.7
A105: 105 | H105: a | I105: צמוד מדד | J105: 789057.17 | K105: 16.89845027 | L105: 6135.825607 | M105: 180339.5991 | N105: 6188.396806 | O105: 183931.75 | P105: 18786.85104 | Q105: 117073.13 | R105: 29818.18 | S105: 2.794053652 | T105: 0 | W105: 22514.19 | X105: 0 | Y105: 1167.688957 | Z105: 0.1859463483 | AC105: 16506.19589 | AD105: 16444.27314 | AE105: 27823.45075 | AF105: 35148.01528 | AG105: 21037.81249 | AH105: 190.6141111 | AI105: 1488.546863 | AJ105: 3789.289248 | AK105: 23603.28472 | AL105: 11201.52751 | CG105: 65848.67
A106: 106 | H106: b | I106: לא צמוד | J106: 584892.09 | K106: 11.26983502 | L106: 4092.07597 | M106: 120271.2377 | N106: 4127.136506 | O106: 116973.17 | P106: 19480.68602 | Q106: 89014.67 | R106: 36032.22 | S106: 2.597157253 | T106: 869.5402188 | W106: 29601.09 | X106: 54.19978118 | Y106: 1210.813983 | Z106: 0.1728427466 | AC106: 14127.19863 | AD106: 14716.70389 | AE106: 17551.26474 | AF106: 27490.84708 | AG106: 18313.23601 | AH106: 163.1413699 | AI106: 1332.166112 | AJ106: 2390.315255 | AK106: 18461.19292 | AL106: 9750.833986 | CG106: 38854.31
A107: 107 | H107: c | I107: צמוד מט"ח | J107: 87522.62 | K107: 1.724118724 | L107: 626.0273366 | M107: 18399.72746 | N107: 631.3910822 | O107: 21071.74 | P107: 2113.129321 | Q107: 13771.01 | R107: 3568.49 | S107: 0.01875203793 | T107: 0 | W107: 1652.01 | X107: 0 | Y107: 131.3406791 | Z107: 0.001247962069 | AC107: 1690.824303 | AD107: 1809.915234 | AE107: 2822.009199 | AF107: 3870.718907 | AG107: 2360.792363 | AH107: 19.52569652 | AI107: 163.8347661 | AJ107: 384.3308011 | AK107: 2599.341093 | AL107: 1256.997637 | CG107: 8577.72
A108: 108 | H108: d | I108: אחר | J108: 0 | K108: 0 | L108: 0 | M108: 0 | N108: 0 | P108: 0 | S108: 0 | T108: 0 | X108: 0 | Y108: 0 | Z108: 0 | AC108: 0 | AD108: 0 | AE108: 0 | AF108: 0 | AG108: 0 | AH108: 0 | AI108: 0 | AJ108: 0 | AK108: 0 | AL108: 0 | CG108: 0
A109: 109 | G109: (ג) | H109: =$H$55 -> דרוג נמוך מ- BBB- או לא מדורג | J109: 51289.28 | K109: 1.335276031 | L109: 484.8385937 | M109: 14250.01348 | N109: 488.9926469 | O109: 10899.66 | P109: 1174.998457 | Q109: 6372.12 | R109: 1526.72 | S109: 0.6469453086 | T109: 0 | U109: 0 | V109: 0 | W109: 2795.86 | X109: 0 | Y109: 73.03154318 | Z109: 0.04305469138 | AA109: 0 | AB109: 0 | AC109: 1293.680533 | AD109: 1091.102642 | AE109: 2224.979027 | AF109: 2328.649564 | AG109: 1324.495749 | AH109: 14.93946676 | AI109: 98.76735815 | AJ109: 303.0209725 | AK109: 1563.780436 | AL109: 705.2242515 | AM109: 0 | AN109: 0 | AO109: 0 | AP109: 0 | AQ109: 0 | AR109: 0 | AS109: 0 | AT109: 0 | AU109: 0 | AV109: 0 | AW109: 0 | AX109: 0 | AY109: 0 | AZ109: 0 | BA109: 0 | BB109: 0 | BC109: 0 | BD109: 0 | BE109: 0 | BF109: 0 | BG109: 0 | BH109: 0 | BI109: 0 | BJ109: 0 | BK109: 0 | BL109: 0 | BM109: 0 | BN109: 0 | BO109: 0 | BP109: 0 | BQ109: 0 | BR109: 0 | BS109: 0 | BT109: 0 | BU109: 0 | BV109: 0 | BW109: 0 | BX109: 0 | BY109: 0 | BZ109: 0 | CA109: 0 | CB109: 0 | CC109: 0 | CD109: 0 | CE109: 0 | CF109: 0 | CG109: 2272.38
A110: 110 | H110: a | I110: צמוד מדד | J110: 28286.46 | K110: 0.7364155388 | L110: 267.3924086 | M110: 7858.997773 | N110: 269.6834026 | O110: 6011.25 | P110: 648.0224336 | Q110: 3514.28 | R110: 842 | S110: 0.3562887207 | T110: 0 | W110: 1541.94 | X110: 0 | Y110: 40.27756638 | Z110: 0.02371127931 | AC110: 713.4708148 | AD110: 601.7492463 | AE110: 1227.091776 | AF110: 1284.271086 | AG110: 730.4720779 | AH110: 8.239185215 | AI110: 54.47075375 | AJ110: 167.1182239 | AK110: 862.4389135 | AL110: 388.9379221 | CG110: 1253.24
A111: 111 | H111: b | I111: לא צמוד | J111: 23002.82 | K111: 0.5988604926 | L111: 217.4461851 | M111: 6391.01571 | N111: 219.3092443 | O111: 4888.41 | P111: 526.9760232 | Q111: 2857.84 | R111: 684.72 | S111: 0.2906565879 | T111: 0 | W111: 1253.92 | X111: 0 | Y111: 32.7539768 | Z111: 0.01934341207 | AC111: 580.2097185 | AD111: 489.3533956 | AE111: 997.8872514 | AF111: 1044.378477 | AG111: 594.0236707 | AH111: 6.700281546 | AI111: 44.2966044 | AJ111: 135.9027486 | AK111: 701.3415227 | AL111: 316.2863293 | CG111: 1019.14
A112: 112 | H112: c | I112: צמוד מט"ח | J112: 0 | K112: 0 | L112: 0 | M112: 0 | N112: 0 | P112: 0 | S112: 0 | T112: 0 | X112: 0 | Y112: 0 | Z112: 0 | AC112: 0 | AD112: 0 | AE112: 0 | AF112: 0 | AG112: 0 | AH112: 0 | AI112: 0 | AJ112: 0 | AK112: 0 | AL112: 0 | CG112: 0
A113: 113 | H113: d | I113: אחר | J113: 0 | K113: 0 | L113: 0 | M113: 0 | N113: 0 | P113: 0 | S113: 0 | T113: 0 | X113: 0 | Y113: 0 | Z113: 0 | AC113: 0 | AD113: 0 | AE113: 0 | AF113: 0 | AG113: 0 | AH113: 0 | AI113: 0 | AJ113: 0 | AK113: 0 | AL113: 0 | CG113: 0
A114: 114 | F114: (2) | G114: לא סחיר | J114: 406542.67 | K114: 18.68149936 | L114: 6783.250553 | M114: 199368.2291 | N114: 6841.36883 | O114: 86362.32 | P114: 7915.552131 | Q114: 16893.88 | R114: 829.4 | S114: 0 | T114: 0 | U114: 2.23 | V114: 0 | W114: 3391.53 | X114: 0 | Y114: 491.9878693 | Z114: 0 | AA114: 12.73 | AB114: 0 | AC114: 6242.560697 | AD114: 6683.880556 | AE114: 9449.119794 | AF114: 13377.98983 | AG114: 4878.347044 | AH114: 72.08930307 | AI114: 605.029444 | AJ114: 1286.880206 | AK114: 8983.850168 | AL114: 2597.462956 | AM114: 0 | AN114: 0 | AO114: 0 | AP114: 0 | AQ114: 0 | AR114: 0 | AS114: 0 | AT114: 0 | AU114: 0 | AV114: 0 | AW114: 0 | AX114: 0 | AY114: 0 | AZ114: 0 | BA114: 0 | BB114: 0 | BC114: 0 | BD114: 0 | BE114: 0 | BF114: 0 | BG114: 0 | BH114: 0 | BI114: 0 | BJ114: 0 | BK114: 0 | BL114: 0 | BM114: 0 | BN114: 0 | BO114: 0 | BP114: 0 | BQ114: 0 | BR114: 0 | BS114: 0 | BT114: 0 | BU114: 0 | BV114: 0 | BW114: 0 | BX114: 0 | BY114: 0 | BZ114: 0 | CA114: 0 | CB114: 0 | CC114: 0 | CD114: 0 | CE114: 0 | CF114: 0 | CG114: 23454.3
A115: 115 | G115: (א) | H115: =$H$47 -> דרוג AA- ומעלה | J115: 393312.2 | K115: 18.42820773 | L115: 6691.280386 | M115: 196665.1107 | N115: 6748.610671 | O115: 84249.11 | P115: 7911.786201 | Q115: 16797.35 | R115: 823.21 | S115: 0 | T115: 0 | U115: 2.23 | V115: 0 | W115: 3190.66 | X115: 0 | Y115: 491.7537995 | Z115: 0 | AA115: 12.73 | AB115: 0 | AC115: 5628.254723 | AD115: 5973.476791 | AE115: 8220.311756 | AF115: 11875.84775 | AG115: 4339.039772 | AH115: 64.99527681 | AI115: 540.7232088 | AJ115: 1119.528244 | AK115: 7975.10225 | AL115: 2310.310228 | AM115: 0 | AN115: 0 | AO115: 0 | AP115: 0 | AQ115: 0 | AR115: 0 | AS115: 0 | AT115: 0 | AU115: 0 | AV115: 0 | AW115: 0 | AX115: 0 | AY115: 0 | AZ115: 0 | BA115: 0 | BB115: 0 | BC115: 0 | BD115: 0 | BE115: 0 | BF115: 0 | BG115: 0 | BH115: 0 | BI115: 0 | BJ115: 0 | BK115: 0 | BL115: 0 | BM115: 0 | BN115: 0 | BO115: 0 | BP115: 0 | BQ115: 0 | BR115: 0 | BS115: 0 | BT115: 0 | BU115: 0 | BV115: 0 | BW115: 0 | BX115: 0 | BY115: 0 | BZ115: 0 | CA115: 0 | CB115: 0 | CC115: 0 | CD115: 0 | CE115: 0 | CF115: 0 | CG115: 21662.35
A116: 116 | H116: a | I116: צמוד מדד | J116: 368118.48 | K116: 17.85082366 | L116: 6481.632288 | M116: 190503.2906 | N116: 6537.166327 | O116: 78719.19 | P116: 7773.021089 | Q116: 14838.73 | R116: 415.05 | S116: 0 | T116: 0 | W116: 2711.6 | X116: 0 | Y116: 483.1289113 | Z116: 0 | AC116: 4471.334873 | AD116: 5112.383542 | AE116: 6686.563654 | AF116: 10327.40704 | AG116: 3482.527475 | AH116: 51.63512706 | AI116: 462.7764583 | AJ116: 910.6463461 | AK116: 6935.262965 | AL116: 1854.262525 | CG116: 19343.02
A117: 117 | H117: b | I117: לא צמוד | J117: 17619.49 | K117: 0.3621103002 | L117: 131.4822139 | M117: 3864.426934 | N117: 132.6087416 | O117: 3213.33 | P117: 0.9697270182 | Q117: 1220.81 | R117: 332.59 | S117: 0 | T117: 0 | W117: 452.32 | X117: 0 | Y117: 0.0602729818 | Z117: 0 | AC117: 919.7190531 | AD117: 743.9748841 | AE117: 1320.324382 | AF117: 1323.001847 | AG117: 674.6463426 | AH117: 10.62094688 | AI117: 67.34511586 | AJ117: 179.8156178 | AK117: 888.4481533 | AL117: 359.2136574 | CG117: 1783.42
A118: 118 | H118: c | I118: צמוד מט"ח | J118: 7574.23 | K118: 0.2152737701 | L118: 78.16588444 | M118: 2297.393239 | N118: 78.83560267 | O118: 2316.59 | P118: 137.7953848 | Q118: 737.81 | R118: 75.57 | S118: 0 | T118: 0 | U118: 2.23 | W118: 26.74 | X118: 0 | Y118: 8.564615161 | Z118: 0 | AA118: 12.73 | AC118: 237.2007971 | AD118: 117.1183654 | AE118: 213.4237201 | AF118: 225.4388686 | AG118: 181.8659545 | AH118: 2.739202866 | AI118: 10.60163462 | AJ118: 29.06627992 | AK118: 151.3911314 | AL118: 96.83404552 | CG118: 535.91
A119: 119 | H119: d | I119: אחר | J119: 0 | K119: 0 | L119: 0 | M119: 0 | N119: 0 | P119: 0 | S119: 0 | T119: 0 | X119: 0 | Y119: 0 | Z119: 0 | AC119: 0 | AD119: 0 | AE119: 0 | AF119: 0 | AG119: 0 | AH119: 0 | AI119: 0 | AJ119: 0 | AK119: 0 | AL119: 0 | CG119: 0
A120: 120 | G120: (ב) | H120: =$H$51 -> דרוג BBB- ועד A+ | J120: 13100.23 | K120: 0.247174431 | L120: 89.74901122 | M120: 2637.835842 | N120: 90.51797262 | O120: 2087.4 | P120: 1.176853177 | Q120: 91.73 | R120: 6.18 | S120: 0 | T120: 0 | U120: 0 | V120: 0 | W120: 199.74 | X120: 0 | Y120: 0.07314682257 | Z120: 0 | AA120: 0 | AB120: 0 | AC120: 612.3683495 | AD120: 708.1938113 | AE120: 1225.912396 | AF120: 1497.673148 | AG120: 537.7998794 | AH120: 7.07165051 | AI120: 64.10618866 | AJ120: 166.9576036 | AK120: 1005.746852 | AL120: 286.3501206 | AM120: 0 | AN120: 0 | AO120: 0 | AP120: 0 | AQ120: 0 | AR120: 0 | AS120: 0 | AT120: 0 | AU120: 0 | AV120: 0 | AW120: 0 | AX120: 0 | AY120: 0 | AZ120: 0 | BA120: 0 | BB120: 0 | BC120: 0 | BD120: 0 | BE120: 0 | BF120: 0 | BG120: 0 | BH120: 0 | BI120: 0 | BJ120: 0 | BK120: 0 | BL120: 0 | BM120: 0 | BN120: 0 | BO120: 0 | BP120: 0 | BQ120: 0 | BR120: 0 | BS120: 0 | BT120: 0 | BU120: 0 | BV120: 0 | BW120: 0 | BX120: 0 | BY120: 0 | BZ120: 0 | CA120: 0 | CB120: 0 | CC120: 0 | CD120: 0 | CE120: 0 | CF120: 0 | CG120: 1783.4
A121: 121 | H121: a | I121: צמוד מדד | J121: 0 | K121: 0 | L121: 0 | M121: 0 | N121: 0 | P121: 0 | S121: 0 | T121: 0 | X121: 0 | Y121: 0 | Z121: 0 | AC121: 0 | AD121: 0 | AE121: 0 | AF121: 0 | AG121: 0 | AH121: 0 | AI121: 0 | AJ121: 0 | AK121: 0 | AL121: 0 | CG121: 0
A122: 122 | H122: b | I122: לא צמוד | J122: 13100.23 | K122: 0.247174431 | L122: 89.74901122 | M122: 2637.835842 | N122: 90.51797262 | O122: 2087.4 | P122: 1.176853177 | Q122: 91.73 | R122: 6.18 | S122: 0 | T122: 0 | W122: 199.74 | X122: 0 | Y122: 0.07314682257 | Z122: 0 | AC122: 612.3683495 | AD122: 708.1938113 | AE122: 1225.912396 | AF122: 1497.673148 | AG122: 537.7998794 | AH122: 7.07165051 | AI122: 64.10618866 | AJ122: 166.9576036 | AK122: 1005.746852 | AL122: 286.3501206 | CG122: 1783.4
A123: 123 | H123: c | I123: צמוד מט"ח | J123: 0 | K123: 0 | L123: 0 | M123: 0 | N123: 0 | P123: 0 | S123: 0 | T123: 0 | X123: 0 | Y123: 0 | Z123: 0 | AC123: 0 | AD123: 0 | AE123: 0 | AF123: 0 | AG123: 0 | AH123: 0 | AI123: 0 | AJ123: 0 | AK123: 0 | AL123: 0 | CG123: 0
A124: 124 | H124: d | I124: אחר | J124: 0 | K124: 0 | L124: 0 | M124: 0 | N124: 0 | P124: 0 | S124: 0 | T124: 0 | X124: 0 | Y124: 0 | Z124: 0 | AC124: 0 | AD124: 0 | AE124: 0 | AF124: 0 | AG124: 0 | AH124: 0 | AI124: 0 | AJ124: 0 | AK124: 0 | AL124: 0 | CG124: 0
A125: 125 | G125: (ג) | H125: =$H$68 -> בדרוג נמוך מ- BBB- או לא מדורג עם בטוחה מספקת | J125: 0 | K125: 0 | L125: 0 | M125: 0 | N125: 0 | O125: 0 | P125: 0 | Q125: 0 | R125: 0 | S125: 0 | T125: 0 | U125: 0 | V125: 0 | W125: 0 | X125: 0 | Y125: 0 | Z125: 0 | AA125: 0 | AB125: 0 | AC125: 0 | AD125: 0 | AE125: 0 | AF125: 0 | AG125: 0 | AH125: 0 | AI125: 0 | AJ125: 0 | AK125: 0 | AL125: 0 | AM125: 0 | AN125: 0 | AO125: 0 | AP125: 0 | AQ125: 0 | AR125: 0 | AS125: 0 | AT125: 0 | AU125: 0 | AV125: 0 | AW125: 0 | AX125: 0 | AY125: 0 | AZ125: 0 | BA125: 0 | BB125: 0 | BC125: 0 | BD125: 0 | BE125: 0 | BF125: 0 | BG125: 0 | BH125: 0 | BI125: 0 | BJ125: 0 | BK125: 0 | BL125: 0 | BM125: 0 | BN125: 0 | BO125: 0 | BP125: 0 | BQ125: 0 | BR125: 0 | BS125: 0 | BT125: 0 | BU125: 0 | BV125: 0 | BW125: 0 | BX125: 0 | BY125: 0 | BZ125: 0 | CA125: 0 | CB125: 0 | CC125: 0 | CD125: 0 | CE125: 0 | CF125: 0 | CG125: 0
A126: 126 | H126: a | I126: צמוד מדד | J126: 0 | K126: 0 | L126: 0 | M126: 0 | N126: 0 | P126: 0 | S126: 0 | T126: 0 | X126: 0 | Y126: 0 | Z126: 0 | AC126: 0 | AD126: 0 | AE126: 0 | AF126: 0 | AG126: 0 | AH126: 0 | AI126: 0 | AJ126: 0 | AK126: 0 | AL126: 0 | CG126: 0
A127: 127 | H127: b | I127: לא צמוד | J127: 0 | K127: 0 | L127: 0 | M127: 0 | N127: 0 | P127: 0 | S127: 0 | T127: 0 | X127: 0 | Y127: 0 | Z127: 0 | AC127: 0 | AD127: 0 | AE127: 0 | AF127: 0 | AG127: 0 | AH127: 0 | AI127: 0 | AJ127: 0 | AK127: 0 | AL127: 0 | CG127: 0
A128: 128 | H128: c | I128: צמוד מט"ח | J128: 0 | K128: 0 | L128: 0 | M128: 0 | N128: 0 | P128: 0 | S128: 0 | T128: 0 | X128: 0 | Y128: 0 | Z128: 0 | AC128: 0 | AD128: 0 | AE128: 0 | AF128: 0 | AG128: 0 | AH128: 0 | AI128: 0 | AJ128: 0 | AK128: 0 | AL128: 0 | CG128: 0
A129: 129 | H129: d | I129: אחר | J129: 0 | K129: 0 | L129: 0 | M129: 0 | N129: 0 | P129: 0 | S129: 0 | T129: 0 | X129: 0 | Y129: 0 | Z129: 0 | AC129: 0 | AD129: 0 | AE129: 0 | AF129: 0 | AG129: 0 | AH129: 0 | AI129: 0 | AJ129: 0 | AK129: 0 | AL129: 0 | CG129: 0
A130: 130 | G130: (ד) | H130: =$H$55 -> דרוג נמוך מ- BBB- או לא מדורג | J130: 130.24 | K130: 0.006117202108 | L130: 2.221155475 | M130: 65.28254119 | N130: 2.240186134 | O130: 25.81 | P130: 2.58907699 | Q130: 4.8 | R130: 0.01 | S130: 0 | T130: 0 | U130: 0 | V130: 0 | W130: 1.13 | X130: 0 | Y130: 0.1609230097 | Z130: 0 | AA130: 0 | AB130: 0 | AC130: 1.937624249 | AD130: 2.209953496 | AE130: 2.895641218 | AF130: 4.468933864 | AG130: 1.507392734 | AH130: 0.02237575068 | AI130: 0.2000465035 | AJ130: 0.3943587815 | AK130: 3.001066136 | AL130: 0.8026072665 | AM130: 0 | AN130: 0 | AO130: 0 | AP130: 0 | AQ130: 0 | AR130: 0 | AS130: 0 | AT130: 0 | AU130: 0 | AV130: 0 | AW130: 0 | AX130: 0 | AY130: 0 | AZ130: 0 | BA130: 0 | BB130: 0 | BC130: 0 | BD130: 0 | BE130: 0 | BF130: 0 | BG130: 0 | BH130: 0 | BI130: 0 | BJ130: 0 | BK130: 0 | BL130: 0 | BM130: 0 | BN130: 0 | BO130: 0 | BP130: 0 | BQ130: 0 | BR130: 0 | BS130: 0 | BT130: 0 | BU130: 0 | BV130: 0 | BW130: 0 | BX130: 0 | BY130: 0 | BZ130: 0 | CA130: 0 | CB130: 0 | CC130: 0 | CD130: 0 | CE130: 0 | CF130: 0 | CG130: 8.55
A131: 131 | H131: a | I131: צמוד מדד | J131: 130.24 | K131: 0.006117202108 | L131: 2.221155475 | M131: 65.28254119 | N131: 2.240186134 | O131: 25.81 | P131: 2.58907699 | Q131: 4.8 | R131: 0.01 | S131: 0 | T131: 0 | W131: 1.13 | X131: 0 | Y131: 0.1609230097 | Z131: 0 | AC131: 1.937624249 | AD131: 2.209953496 | AE131: 2.895641218 | AF131: 4.468933864 | AG131: 1.507392734 | AH131: 0.02237575068 | AI131: 0.2000465035 | AJ131: 0.3943587815 | AK131: 3.001066136 | AL131: 0.8026072665 | CG131: 8.55
A132: 132 | H132: b | I132: לא צמוד | J132: 0 | K132: 0 | L132: 0 | M132: 0 | N132: 0 | P132: 0 | S132: 0 | T132: 0 | X132: 0 | Y132: 0 | Z132: 0 | AC132: 0 | AD132: 0 | AE132: 0 | AF132: 0 | AG132: 0 | AH132: 0 | AI132: 0 | AJ132: 0 | AK132: 0 | AL132: 0 | CG132: 0
A133: 133 | H133: c | I133: צמוד מט"ח | J133: 0 | K133: 0 | L133: 0 | M133: 0 | N133: 0 | P133: 0 | S133: 0 | T133: 0 | X133: 0 | Y133: 0 | Z133: 0 | AC133: 0 | AD133: 0 | AE133: 0 | AF133: 0 | AG133: 0 | AH133: 0 | AI133: 0 | AJ133: 0 | AK133: 0 | AL133: 0 | CG133: 0
A134: 134 | H134: d | I134: אחר | J134: 0 | K134: 0 | L134: 0 | M134: 0 | N134: 0 | P134: 0 | S134: 0 | T134: 0 | X134: 0 | Y134: 0 | Z134: 0 | AC134: 0 | AD134: 0 | AE134: 0 | AF134: 0 | AG134: 0 | AH134: 0 | AI134: 0 | AJ134: 0 | AK134: 0 | AL134: 0 | CG134: 0
A135: 135 | E135: ב) | F135: בחו"ל | J135: 2711770.32 | K135: 48.97496995 | L135: 17782.8067 | M135: 522658.9602 | N135: 17935.16818 | O135: 535965.45 | P135: 44022.49973 | Q135: 243261.43 | R135: 47945.48 | S135: 4.25671261 | T135: 0 | U135: 627892.18 | V135: 0 | W135: 48870.55 | X135: 0 | Y135: 2736.200266 | Z135: 0.2832873897 | AA135: 47744.19 | AB135: 0 | AC135: 43042.88925 | AD135: 54156.67106 | AE135: 58921.43165 | AF135: 69257.74228 | AG135: 45888.97622 | AH135: 497.0607478 | AI135: 4902.298942 | AJ135: 8024.538345 | AK135: 46509.31772 | AL135: 24433.46378 | AM135: 0 | AN135: 0 | AO135: 0 | AP135: 0 | AQ135: 0 | AR135: 0 | AS135: 0 | AT135: 2240.38 | AU135: 0 | AV135: 0 | AW135: 0 | AX135: 0 | AY135: 0 | AZ135: 0 | BA135: 0 | BB135: 0 | BC135: 0 | BD135: 0 | BE135: 0 | BF135: 0 | BG135: 0 | BH135: 0 | BI135: 0 | BJ135: 0 | BK135: 0 | BL135: 0 | BM135: 0 | BN135: 0 | BO135: 0 | BP135: 0 | BQ135: 0 | BR135: 0 | BS135: 0 | BT135: 0 | BU135: 0 | BV135: 0 | BW135: 0 | BX135: 0 | BY135: 0 | BZ135: 0 | CA135: 0 | CB135: 0 | CC135: 0 | CD135: 0 | CE135: 0 | CF135: 0 | CG135: 197027.12
A136: 136 | F136: (1) | G136: סחיר - חברות ישראליות | J136: 212808.85 | K136: 4.798543818 | L136: 1742.350781 | M136: 51209.87159 | N136: 1757.279085 | O136: 52842.19 | P136: 6292.916384 | Q136: 30562.36 | R136: 7961.39 | S136: 0.0281280569 | T136: 0 | U136: 277.28 | V136: 0 | W136: 3569.12 | X136: 0 | Y136: 391.1336155 | Z136: 0.001871943104 | AA136: 91.67 | AB136: 0 | AC136: 3548.234863 | AD136: 3724.817014 | AE136: 5912.12485 | AF136: 7960.81042 | AG136: 4811.741167 | AH136: 40.97513678 | AI136: 337.1729862 | AJ136: 805.1751499 | AK136: 5345.99958 | AL136: 2561.998833 | AM136: 0 | AN136: 0 | AO136: 0 | AP136: 0 | AQ136: 0 | AR136: 0 | AS136: 0 | AT136: 0 | AU136: 0 | AV136: 0 | AW136: 0 | AX136: 0 | AY136: 0 | AZ136: 0 | BA136: 0 | BB136: 0 | BC136: 0 | BD136: 0 | BE136: 0 | BF136: 0 | BG136: 0 | BH136: 0 | BI136: 0 | BJ136: 0 | BK136: 0 | BL136: 0 | BM136: 0 | BN136: 0 | BO136: 0 | BP136: 0 | BQ136: 0 | BR136: 0 | BS136: 0 | BT136: 0 | BU136: 0 | BV136: 0 | BW136: 0 | BX136: 0 | BY136: 0 | BZ136: 0 | CA136: 0 | CB136: 0 | CC136: 0 | CD136: 0 | CE136: 0 | CF136: 0 | CG136: 21057.41
A137: 137 | G137: (א) | H137: =$H$78 -> דרוג A- ומעלה | J137: 0 | K137: 0 | L137: 0 | M137: 0 | N137: 0 | P137: 0 | S137: 0 | T137: 0 | X137: 0 | Y137: 0 | Z137: 0 | AC137: 0 | AD137: 0 | AE137: 0 | AF137: 0 | AG137: 0 | AH137: 0 | AI137: 0 | AJ137: 0 | AK137: 0 | AL137: 0 | CG137: 0
A138: 138 | G138: (ב) | H138: =$H$79 -> דרוג BBB- ועד BBB+ | J138: 99052.78 | K138: 2.557648245 | L138: 928.6818224 | M138: 27295.12185 | N138: 936.6386842 | O138: 25454.54 | P138: 3546.404683 | Q138: 12663.72 | R138: 3323.31 | S138: 0.009376018965 | T138: 0 | U138: 277.28 | W138: 1421.95 | X138: 0 | Y138: 220.4253165 | Z138: 0.0006239810345 | AA138: 91.67 | AC138: 1350.613074 | AD138: 1372.408631 | AE138: 2244.271567 | AF138: 2929.909618 | AG138: 1743.342112 | AH138: 15.59692568 | AI138: 124.2313689 | AJ138: 305.6484329 | AK138: 1967.550382 | AL138: 928.2378878 | CG138: 9908.66
A139: =A138+1 -> 139 | G139: (ג) | H139: =$H$80 -> דרוג נמוך מ- BBB- או לא מדורג | J139: 113756.07 | K139: 2.240895573 | L139: 813.6689589 | M139: 23914.74974 | N139: 820.6404009 | O139: 27387.65 | P139: 2746.511701 | Q139: 17898.64 | R139: 4638.08 | S139: 0.01875203793 | T139: 0 | W139: 2147.17 | X139: 0 | Y139: 170.708299 | Z139: 0.001247962069 | AC139: 2197.621789 | AD139: 2352.408383 | AE139: 3667.853283 | AF139: 5030.900802 | AG139: 3068.399055 | AH139: 25.3782111 | AI139: 212.9416173 | AJ139: 499.526717 | AK139: 3378.449198 | AL139: 1633.760945 | CG139: 11148.75
A140: 140 | F140: (2) | G140: לא סחיר - חברות ישראליות | J140: 0 | K140: 0 | L140: 0 | M140: 0 | N140: 0 | O140: 0 | P140: 0 | Q140: 0 | R140: 0 | S140: 0 | T140: 0 | U140: 0 | V140: 0 | W140: 0 | X140: 0 | Y140: 0 | Z140: 0 | AA140: 0 | AB140: 0 | AC140: 0 | AD140: 0 | AE140: 0 | AF140: 0 | AG140: 0 | AH140: 0 | AI140: 0 | AJ140: 0 | AK140: 0 | AL140: 0 | AM140: 0 | AN140: 0 | AO140: 0 | AP140: 0 | AQ140: 0 | AR140: 0 | AS140: 0 | AT140: 0 | AU140: 0 | AV140: 0 | AW140: 0 | AX140: 0 | AY140: 0 | AZ140: 0 | BA140: 0 | BB140: 0 | BC140: 0 | BD140: 0 | BE140: 0 | BF140: 0 | BG140: 0 | BH140: 0 | BI140: 0 | BJ140: 0 | BK140: 0 | BL140: 0 | BM140: 0 | BN140: 0 | BO140: 0 | BP140: 0 | BQ140: 0 | BR140: 0 | BS140: 0 | BT140: 0 | BU140: 0 | BV140: 0 | BW140: 0 | BX140: 0 | BY140: 0 | BZ140: 0 | CA140: 0 | CB140: 0 | CC140: 0 | CD140: 0 | CE140: 0 | CF140: 0 | CG140: 0
A141: 141 | G141: (א) | H141: =$H$78 -> דרוג A- ומעלה | J141: 0 | K141: 0 | L141: 0 | M141: 0 | N141: 0 | P141: 0 | S141: 0 | T141: 0 | X141: 0 | Y141: 0 | Z141: 0 | AC141: 0 | AD141: 0 | AE141: 0 | AF141: 0 | AG141: 0 | AH141: 0 | AI141: 0 | AJ141: 0 | AK141: 0 | AL141: 0 | CG141: 0
A142: 142 | G142: (ב) | H142: =$H$79 -> דרוג BBB- ועד BBB+ | J142: 0 | K142: 0 | L142: 0 | M142: 0 | N142: 0 | P142: 0 | S142: 0 | T142: 0 | X142: 0 | Y142: 0 | Z142: 0 | AC142: 0 | AD142: 0 | AE142: 0 | AF142: 0 | AG142: 0 | AH142: 0 | AI142: 0 | AJ142: 0 | AK142: 0 | AL142: 0 | CG142: 0
A143: 143 | G143: (ג) | H143: =$H$68 -> בדרוג נמוך מ- BBB- או לא מדורג עם בטוחה מספקת | J143: 0 | K143: 0 | L143: 0 | M143: 0 | N143: 0 | P143: 0 | S143: 0 | T143: 0 | X143: 0 | Y143: 0 | Z143: 0 | AC143: 0 | AD143: 0 | AE143: 0 | AF143: 0 | AG143: 0 | AH143: 0 | AI143: 0 | AJ143: 0 | AK143: 0 | AL143: 0 | CG143: 0
A144: 144 | G144: (ד) | H144: =H139 -> דרוג נמוך מ- BBB- או לא מדורג | J144: 0 | K144: 0 | L144: 0 | M144: 0 | N144: 0 | P144: 0 | S144: 0 | T144: 0 | X144: 0 | Y144: 0 | Z144: 0 | AC144: 0 | AD144: 0 | AE144: 0 | AF144: 0 | AG144: 0 | AH144: 0 | AI144: 0 | AJ144: 0 | AK144: 0 | AL144: 0 | CG144: 0
A145: 145 | F145: (3) | G145: סחיר - חברות זרות | J145: 2369377.13 | K145: 40.49340125 | L145: 14703.14995 | M145: 432143.9914 | N145: 14829.12521 | O145: 443489.68 | P145: 35372.09223 | Q145: 200076.21 | R145: 38691.17 | S145: 4.228584553 | T145: 0 | U145: 627576.74 | V145: 0 | W145: 44843.88 | X145: 0 | Y145: 2198.537765 | Z145: 0.2814154466 | AA145: 47434.7 | AB145: 0 | AC145: 35436.508 | AD145: 48428.05895 | AE145: 49357.92963 | AF145: 57440.02058 | AG145: 37965.80678 | AH145: 409.2219986 | AI145: 4383.741052 | AJ145: 6722.080368 | AK145: 38573.24942 | AL145: 20214.79322 | AM145: 0 | AN145: 0 | AO145: 0 | AP145: 0 | AQ145: 0 | AR145: 0 | AS145: 0 | AT145: 2240.38 | AU145: 0 | AV145: 0 | AW145: 0 | AX145: 0 | AY145: 0 | AZ145: 0 | BA145: 0 | BB145: 0 | BC145: 0 | BD145: 0 | BE145: 0 | BF145: 0 | BG145: 0 | BH145: 0 | BI145: 0 | BJ145: 0 | BK145: 0 | BL145: 0 | BM145: 0 | BN145: 0 | BO145: 0 | BP145: 0 | BQ145: 0 | BR145: 0 | BS145: 0 | BT145: 0 | BU145: 0 | BV145: 0 | BW145: 0 | BX145: 0 | BY145: 0 | BZ145: 0 | CA145: 0 | CB145: 0 | CC145: 0 | CD145: 0 | CE145: 0 | CF145: 0 | CG145: 166801.06
A146: 146 | G146: (א) | H146: =$H$78 -> דרוג A- ומעלה | J146: 532968.77 | K146: 9.106836203 | L146: 3306.691316 | M146: 97187.7991 | N146: 3335.022748 | O146: 99752.14 | P146: 7957.504593 | Q146: 45007.24 | R146: 8703.41 | S146: 0 | T146: 0 | U146: 141183.06 | W146: 10088.34 | X146: 0 | Y146: 494.5954072 | Z146: 0 | AA146: 10671.18 | AC146: 7971.900225 | AD146: 10894.62141 | AE146: 11103.72791 | AF146: 12921.95517 | AG146: 8541.004687 | AH146: 92.05977471 | AI146: 986.188589 | AJ146: 1512.222088 | AK146: 8677.604827 | AL146: 4547.635313 | AT146: 504.01 | CG146: 37519.75
A147: 147 | G147: (ב) | H147: =$H$79 -> דרוג BBB- ועד BBB+ | J147: 1425719.77 | K147: 24.36127196 | L147: 8845.575419 | M147: 259982.5398 | N147: 8921.363509 | O147: 266842.27 | P147: 21286.76022 | Q147: 120396.77 | R147: 23282.08 | S147: 0 | T147: 0 | U147: 377672.18 | W147: 26986.83 | X147: 0 | Y147: 1323.069779 | Z147: 0 | AA147: 28545.98 | AC147: 21325.25523 | AD147: 29143.69296 | AE147: 29703.04755 | AF147: 34566.91628 | AG147: 22847.64302 | AH147: 246.2647721 | AI147: 2638.10704 | AJ147: 4045.272448 | AK147: 23213.05372 | AL147: 12165.16698 | AT147: 1348.25 | CG147: 100367.32
A148: 148 | G148: (ג) | H148: =$H$80 -> דרוג נמוך מ- BBB- או לא מדורג | J148: 410688.59 | K148: 7.025293087 | L148: 2550.883219 | M148: 74973.65253 | N148: 2572.738955 | O148: 76895.27 | P148: 6127.827421 | Q148: 34672.2 | R148: 6705.68 | S148: 4.228584553 | T148: 0 | U148: 108721.5 | W148: 7768.71 | X148: 0 | Y148: 380.8725793 | Z148: 0.2814154466 | AA148: 8217.54 | AC148: 6139.352548 | AD148: 8389.744577 | AE148: 8551.154168 | AF148: 9951.149127 | AG148: 6577.159078 | AH148: 70.89745186 | AI148: 759.445423 | AJ148: 1164.585832 | AK148: 6682.590873 | AL148: 3501.990922 | AT148: 388.12 | CG148: 28913.99
A149: 149 | F149: (4) | G149: לא סחיר - חברות זרות | J149: 129584.34 | K149: 3.683024874 | L149: 1337.305964 | M149: 39305.09713 | N149: 1348.763881 | O149: 39633.58 | P149: 2357.491115 | Q149: 12622.86 | R149: 1292.92 | S149: 0 | T149: 0 | U149: 38.16 | V149: 0 | W149: 457.55 | X149: 0 | Y149: 146.5288853 | Z149: 0 | AA149: 217.82 | AB149: 0 | AC149: 4058.146388 | AD149: 2003.795096 | AE149: 3651.377172 | AF149: 3856.911278 | AG149: 3111.428265 | AH149: 46.86361239 | AI149: 181.384904 | AJ149: 497.2828275 | AK149: 2590.068722 | AL149: 1656.671735 | AM149: 0 | AN149: 0 | AO149: 0 | AP149: 0 | AQ149: 0 | AR149: 0 | AS149: 0 | AT149: 0 | AU149: 0 | AV149: 0 | AW149: 0 | AX149: 0 | AY149: 0 | AZ149: 0 | BA149: 0 | BB149: 0 | BC149: 0 | BD149: 0 | BE149: 0 | BF149: 0 | BG149: 0 | BH149: 0 | BI149: 0 | BJ149: 0 | BK149: 0 | BL149: 0 | BM149: 0 | BN149: 0 | BO149: 0 | BP149: 0 | BQ149: 0 | BR149: 0 | BS149: 0 | BT149: 0 | BU149: 0 | BV149: 0 | BW149: 0 | BX149: 0 | BY149: 0 | BZ149: 0 | CA149: 0 | CB149: 0 | CC149: 0 | CD149: 0 | CE149: 0 | CF149: 0 | CG149: 9168.65
A150: 150 | G150: (א) | H150: =$H$78 -> דרוג A- ומעלה | J150: 0 | K150: 0 | L150: 0 | M150: 0 | N150: 0 | P150: 0 | S150: 0 | T150: 0 | X150: 0 | Y150: 0 | Z150: 0 | AC150: 0 | AD150: 0 | AE150: 0 | AF150: 0 | AG150: 0 | AH150: 0 | AI150: 0 | AJ150: 0 | AK150: 0 | AL150: 0 | CG150: 0
A151: 151 | G151: (ב) | H151: =$H$79 -> דרוג BBB- ועד BBB+ | J151: 0 | K151: 0 | L151: 0 | M151: 0 | N151: 0 | P151: 0 | S151: 0 | T151: 0 | X151: 0 | Y151: 0 | Z151: 0 | AC151: 0 | AD151: 0 | AE151: 0 | AF151: 0 | AG151: 0 | AH151: 0 | AI151: 0 | AJ151: 0 | AK151: 0 | AL151: 0 | CG151: 0
A152: 152 | G152: (ג) | H152: =$H$68 -> בדרוג נמוך מ- BBB- או לא מדורג עם בטוחה מספקת | J152: 0 | K152: 0 | L152: 0 | M152: 0 | N152: 0 | P152: 0 | S152: 0 | T152: 0 | X152: 0 | Y152: 0 | Z152: 0 | AC152: 0 | AD152: 0 | AE152: 0 | AF152: 0 | AG152: 0 | AH152: 0 | AI152: 0 | AJ152: 0 | AK152: 0 | AL152: 0 | CG152: 0
A153: 153 | G153: (ד) | H153: =H148 -> דרוג נמוך מ- BBB- או לא מדורג | J153: 129584.34 | K153: 3.683024874 | L153: 1337.305964 | M153: 39305.09713 | N153: 1348.763881 | O153: 39633.58 | P153: 2357.491115 | Q153: 12622.86 | R153: 1292.92 | S153: 0 | T153: 0 | U153: 38.16 | W153: 457.55 | X153: 0 | Y153: 146.5288853 | Z153: 0 | AA153: 217.82 | AC153: 4058.146388 | AD153: 2003.795096 | AE153: 3651.377172 | AF153: 3856.911278 | AG153: 3111.428265 | AH153: 46.86361239 | AI153: 181.384904 | AJ153: 497.2828275 | AK153: 2590.068722 | AL153: 1656.671735 | CG153: 9168.65
A154: 154 | AC154: 0 | AD154: 0 | AE154: 0 | AF154: 0 | AG154: 0 | AH154: 0 | AI154: 0 | AJ154: 0 | AK154: 0 | AL154: 0 | CG154: 0
A155: 155 | D155: 4) | E155: מניות (למעט חברות מוחזקות) | J155: 12076891.85 | K155: 392.6608924 | L155: 142575.1308 | M155: 4190461.657 | N155: 143796.7016 | O155: 3577548.78 | P155: 36085.53829 | Q155: 317813.1 | R155: 51593.34 | S155: 1126646.085 | T155: 0 | U155: 100952.84 | V155: 0 | W155: 712.26 | X155: 0 | Y155: 2242.88171 | Z155: 74979.13479 | AA155: 379.79 | AB155: 0 | AC155: 567318.5066 | AD155: 273954.3084 | AE155: 183535.061 | AF155: 402522.7959 | AG155: 86343.4101 | AH155: 6551.413394 | AI155: 24798.53156 | AJ155: 24995.72895 | AK155: 270310.0041 | AL155: 45973.3199 | AM155: 55585.1 | AN155: 0 | AO155: 0 | AP155: 0 | AQ155: 0 | AR155: 0 | AS155: 0 | AT155: 219.53 | AU155: 4233.52 | AV155: 0 | AW155: 0 | AX155: 0 | AY155: 0 | AZ155: 0 | BA155: 0 | BB155: 0 | BC155: 0 | BD155: 0 | BE155: 0 | BF155: 0 | BG155: 0 | BH155: 0 | BI155: 0 | BJ155: 0 | BK155: 0 | BL155: 0 | BM155: 0 | BN155: 0 | BO155: 0 | BP155: 0 | BQ155: 0 | BR155: 0 | BS155: 0 | BT155: 0 | BU155: 0 | BV155: 0 | BW155: 0 | BX155: 0 | BY155: 0 | BZ155: 0 | CA155: 0 | CB155: 0 | CC155: 0 | CD155: 0 | CE155: 0 | CF155: 0 | CG155: 364370.72
A156: 156 | E156: א) | F156: בישראל | J156: 7736959.81 | K156: 261.4530559 | L156: 94933.57851 | M156: 2790216.768 | N156: 95746.96082 | O156: 2266722.45 | P156: 2332.946665 | Q156: 105661.56 | R156: 16783.27 | S156: 840859.3828 | T156: 0 | U156: 2608.11 | V156: 0 | W156: 308.05 | X156: 0 | Y156: 145.0033352 | Z156: 55959.81722 | AA156: 0 | AB156: 0 | AC156: 375475.1304 | AD156: 183636.581 | AE156: 117256.5092 | AF156: 265989.8907 | AG156: 49324.70926 | AH156: 4335.999566 | AI156: 16622.90903 | AJ156: 15969.22084 | AK156: 178622.7493 | AL156: 26262.81074 | AM156: 27067.41 | AN156: 0 | AO156: 0 | AP156: 0 | AQ156: 0 | AR156: 0 | AS156: 0 | AT156: 0 | AU156: 0 | AV156: 0 | AW156: 0 | AX156: 0 | AY156: 0 | AZ156: 0 | BA156: 0 | BB156: 0 | BC156: 0 | BD156: 0 | BE156: 0 | BF156: 0 | BG156: 0 | BH156: 0 | BI156: 0 | BJ156: 0 | BK156: 0 | BL156: 0 | BM156: 0 | BN156: 0 | BO156: 0 | BP156: 0 | BQ156: 0 | BR156: 0 | BS156: 0 | BT156: 0 | BU156: 0 | BV156: 0 | BW156: 0 | BX156: 0 | BY156: 0 | BZ156: 0 | CA156: 0 | CB156: 0 | CC156: 0 | CD156: 0 | CE156: 0 | CF156: 0 | CG156: 203856.54
A157: 157 | F157: (1) | G157: סחיר | J157: 6868125.5 | K157: 225.0685263 | L157: 81722.35942 | M157: 2401922.493 | N157: 82422.5492 | O157: 2079293.01 | P157: 0.4613264456 | Q157: 55021.75 | R157: 780.6 | S157: 831153.8718 | T157: 0 | U157: 0 | V157: 0 | W157: 308.05 | X157: 0 | Y157: 0.02867355445 | Z157: 55313.90824 | AA157: 0 | AB157: 0 | AC157: 346264.1597 | AD157: 166512.5316 | AE157: 99390.90452 | AF157: 246394.8541 | AG157: 39111.49052 | AH157: 3998.670284 | AI157: 15072.82836 | AJ157: 13536.09548 | AK157: 165463.9059 | AL157: 20824.80948 | AM157: 24824.6 | AN157: 0 | AO157: 0 | AP157: 0 | AQ157: 0 | AR157: 0 | AS157: 0 | AT157: 0 | AU157: 0 | AV157: 0 | AW157: 0 | AX157: 0 | AY157: 0 | AZ157: 0 | BA157: 0 | BB157: 0 | BC157: 0 | BD157: 0 | BE157: 0 | BF157: 0 | BG157: 0 | BH157: 0 | BI157: 0 | BJ157: 0 | BK157: 0 | BL157: 0 | BM157: 0 | BN157: 0 | BO157: 0 | BP157: 0 | BQ157: 0 | BR157: 0 | BS157: 0 | BT157: 0 | BU157: 0 | BV157: 0 | BW157: 0 | BX157: 0 | BY157: 0 | BZ157: 0 | CA157: 0 | CB157: 0 | CC157: 0 | CD157: 0 | CE157: 0 | CF157: 0 | CG157: 138566.5
A158: 158 | G158: (א) | H158: ='[1]טופס 106 חודשי'!H158 -> ת"א 35 | J158: 4347116.41 | K158: 141.5154974 | L158: 51384.26298 | M158: 1510247.843 | N158: 51824.51869 | O158: 1324034.21 | P158: 0 | Q158: 33328.24 | R158: 0 | S158: 530179.7063 | T158: 0 | U158: 0 | V158: 0 | W158: 238.38 | X158: 0 | Y158: 0 | Z158: 35283.85372 | AA158: 0 | AB158: 0 | AC158: 220876.3326 | AD158: 106215.6653 | AE158: 63399.87085 | AF158: 157171.3212 | AG158: 24948.60264 | AH158: 2550.687395 | AI158: 9614.714739 | AJ158: 8634.459151 | AK158: 105546.7688 | AL158: 13283.81736 | AM158: 15835.2 | AN158: 0 | AO158: 0 | AP158: 0 | AQ158: 0 | AR158: 0 | AS158: 0 | AT158: 0 | AU158: 0 | AV158: 0 | AW158: 0 | AX158: 0 | AY158: 0 | AZ158: 0 | BA158: 0 | BB158: 0 | BC158: 0 | BD158: 0 | BE158: 0 | BF158: 0 | BG158: 0 | BH158: 0 | BI158: 0 | BJ158: 0 | BK158: 0 | BL158: 0 | BM158: 0 | BN158: 0 | BO158: 0 | BP158: 0 | BQ158: 0 | BR158: 0 | BS158: 0 | BT158: 0 | BU158: 0 | BV158: 0 | BW158: 0 | BX158: 0 | BY158: 0 | BZ158: 0 | CA158: 0 | CB158: 0 | CC158: 0 | CD158: 0 | CE158: 0 | CF158: 0 | CG158: 82376.44
A159: 159 | H159: a | I159: מניות | J159: 4347116.41 | K159: 141.5154974 | L159: 51384.26298 | M159: 1510247.843 | N159: 51824.51869 | O159: 1324034.21 | P159: 0 | Q159: 33328.24 | S159: 530179.7063 | T159: 0 | W159: 238.38 | X159: 0 | Y159: 0 | Z159: 35283.85372 | AC159: 220876.3326 | AD159: 106215.6653 | AE159: 63399.87085 | AF159: 157171.3212 | AG159: 24948.60264 | AH159: 2550.687395 | AI159: 9614.714739 | AJ159: 8634.459151 | AK159: 105546.7688 | AL159: 13283.81736 | AM159: 15835.2 | CG159: 82376.44
A160: 160 | H160: b | I160: אופציה 001 Call ח (Long) | J160: 0 | K160: 0 | L160: 0 | M160: 0 | N160: 0 | P160: 0 | S160: 0 | T160: 0 | X160: 0 | Y160: 0 | Z160: 0 | AC160: 0 | AD160: 0 | AE160: 0 | AF160: 0 | AG160: 0 | AH160: 0 | AI160: 0 | AJ160: 0 | AK160: 0 | AL160: 0 | CG160: 0
A161: 161 | H161: c | I161: אופציה 001 Call ח (Short) | J161: 0 | K161: 0 | L161: 0 | M161: 0 | N161: 0 | P161: 0 | S161: 0 | T161: 0 | X161: 0 | Y161: 0 | Z161: 0 | AC161: 0 | AD161: 0 | AE161: 0 | AF161: 0 | AG161: 0 | AH161: 0 | AI161: 0 | AJ161: 0 | AK161: 0 | AL161: 0 | CG161: 0
A162: 162 | G162: (ב) | H162: ='[1]טופס 106 חודשי'!H162 -> ת"א 90 | J162: 1912384.26 | K162: 62.31597997 | L162: 22626.92611 | M162: 665033.6964 | N162: 22820.79156 | O162: 578831.16 | P162: 0 | Q162: 17252.52 | R162: 780.6 | S162: 230327.6815 | T162: 0 | W162: 67.16 | X162: 0 | Y162: 0 | Z162: 15328.47849 | AC162: 95956.03643 | AD162: 46143.6181 | AE162: 27543.00482 | AF162: 68280.45165 | AG162: 10838.49961 | AH162: 1108.10357 | AI162: 4176.951902 | AJ162: 3751.095181 | AK162: 45853.02835 | AL162: 5770.930394 | AM162: 6879.35 | CG162: 42951.86
A163: 163 | G163: (ג) | H163: מניות היתר | J163: 410644.88 | K163: 14.79172446 | L163: 5370.873673 | M163: 157856.7038 | N163: 5416.890833 | O163: 116124.49 | P163: 0 | Q163: 2923.06 | S163: 46499.44721 | T163: 0 | W163: 1.65 | X163: 0 | Y163: 0 | Z163: 3094.572791 | AC163: 19371.97181 | AD163: 9315.650902 | AE163: 5560.48487 | AF163: 13784.71067 | AG163: 2188.1078 | AH163: 223.7081888 | AI163: 843.2590975 | AJ163: 757.2851304 | AK163: 9256.979326 | AL163: 1165.0522 | AM163: 1388.83 | CG163: 9486.36
A164: 164 | G164: (ד) | H164: מניות זרות הנסחרות בארץ | J164: 197979.95 | K164: 6.445324444 | L164: 2340.296662 | M164: 68784.2499 | N164: 2360.348112 | O164: 60303.15 | P164: 0.4613264456 | Q164: 1517.93 | S164: 24147.03675 | T164: 0 | W164: 0.86 | X164: 0 | Y164: 0.02867355445 | Z164: 1607.003252 | AC164: 10059.81887 | AD164: 4837.597374 | AE164: 2887.543985 | AF164: 7158.37057 | AG164: 1136.280473 | AH164: 116.1711302 | AI164: 437.9026263 | AJ164: 393.2560153 | AK164: 4807.12943 | AL164: 605.0095268 | AM164: 721.22 | CG164: 3751.84
A165: 165 | F165: (2) | G165: לא סחיר | J165: 868834.31 | K165: 36.38452966 | L165: 13211.21909 | M165: 388294.2748 | N165: 13324.41162 | O165: 187429.44 | P165: 2332.485338 | Q165: 50639.81 | R165: 16002.67 | S165: 9705.511024 | T165: 0 | U165: 2608.11 | W165: 0 | X165: 0 | Y165: 144.9746616 | Z165: 645.908976 | AC165: 29210.97072 | AD165: 17124.04933 | AE165: 17865.60464 | AF165: 19595.03662 | AG165: 10213.21874 | AH165: 337.3292825 | AI165: 1550.080669 | AJ165: 2433.125358 | AK165: 13158.84338 | AL165: 5438.001256 | AM165: 2242.81 | CG165: 65290.04
A166: 166 | E166: ב) | F166: בחו"ל | J166: 4339932.04 | K166: 131.2078364 | L166: 47641.55232 | M166: 1400244.889 | N166: 48049.74082 | O166: 1310826.33 | P166: 33752.59163 | Q166: 212151.54 | R166: 34810.07 | S166: 285786.7024 | T166: 0 | U166: 98344.73 | V166: 0 | W166: 404.21 | X166: 0 | Y166: 2097.878375 | Z166: 19019.31757 | AA166: 379.79 | AB166: 0 | AC166: 191843.3762 | AD166: 90317.72747 | AE166: 66278.55188 | AF166: 136532.9052 | AG166: 37018.70084 | AH166: 2215.413828 | AI166: 8175.622526 | AJ166: 9026.508117 | AK166: 91687.25484 | AL166: 19710.50916 | AM166: 28517.69 | AN166: 0 | AO166: 0 | AP166: 0 | AQ166: 0 | AR166: 0 | AS166: 0 | AT166: 219.53 | AU166: 4233.52 | AV166: 0 | AW166: 0 | AX166: 0 | AY166: 0 | AZ166: 0 | BA166: 0 | BB166: 0 | BC166: 0 | BD166: 0 | BE166: 0 | BF166: 0 | BG166: 0 | BH166: 0 | BI166: 0 | BJ166: 0 | BK166: 0 | BL166: 0 | BM166: 0 | BN166: 0 | BO166: 0 | BP166: 0 | BQ166: 0 | BR166: 0 | BS166: 0 | BT166: 0 | BU166: 0 | BV166: 0 | BW166: 0 | BX166: 0 | BY166: 0 | BZ166: 0 | CA166: 0 | CB166: 0 | CC166: 0 | CD166: 0 | CE166: 0 | CF166: 0 | CG166: 160514.18
A167: 167 | F167: (1) | G167: סחיר | J167: 2684540.98 | K167: 86.39305856 | L167: 31369.31094 | M167: 921983.3356 | N167: 31638.08036 | O167: 806911.05 | P167: 0 | Q167: 28467.56 | R167: 26.57 | S167: 283315.6901 | T167: 0 | U167: 75617.57 | V167: 0 | W167: 7.06 | X167: 0 | Y167: 0 | Z167: 18854.86986 | AA167: 3.19 | AB167: 0 | AC167: 128535.1122 | AD167: 62450.80993 | AE167: 37892.04414 | AF167: 93026.99644 | AG167: 14761.74695 | AH167: 1484.327843 | AI167: 5653.090071 | AJ167: 5160.535863 | AK167: 62471.31356 | AL167: 7859.853047 | AM167: 8859.17 | AN167: 0 | AO167: 0 | AP167: 0 | AQ167: 0 | AR167: 0 | AS167: 0 | AT167: 219.53 | AU167: 4233.52 | AV167: 0 | AW167: 0 | AX167: 0 | AY167: 0 | AZ167: 0 | BA167: 0 | BB167: 0 | BC167: 0 | BD167: 0 | BE167: 0 | BF167: 0 | BG167: 0 | BH167: 0 | BI167: 0 | BJ167: 0 | BK167: 0 | BL167: 0 | BM167: 0 | BN167: 0 | BO167: 0 | BP167: 0 | BQ167: 0 | BR167: 0 | BS167: 0 | BT167: 0 | BU167: 0 | BV167: 0 | BW167: 0 | BX167: 0 | BY167: 0 | BZ167: 0 | CA167: 0 | CB167: 0 | CC167: 0 | CD167: 0 | CE167: 0 | CF167: 0 | CG167: 53652.25
A168: 168 | G168: (א) | H168: חברות ישראליות | J168: 1113003.93 | K168: 36.2344236 | L168: 13156.71559 | M168: 386692.3488 | N168: 13269.44114 | O168: 339013.17 | P168: 0 | Q168: 8533.56 | S168: 135750.1843 | T168: 0 | W168: 4.82 | X168: 0 | Y168: 0 | Z168: 9034.275713 | AC168: 56554.42755 | AD168: 27196.05452 | AE168: 16233.26392 | AF168: 40243.03063 | AG168: 6387.978027 | AH168: 653.0924512 | AI168: 2461.805475 | AJ168: 2210.816084 | AK168: 27024.78937 | AL168: 3401.261973 | AM168: 4054.54 | CG168: 21092.12
A169: 169 | G169: (ב) | H169: חברות זרות החזקה מתחת ל-10% | J169: 1566753.16 | K169: 50.00289319 | L169: 18156.04553 | M169: 533628.9167 | N169: 18311.60488 | O169: 466440.75 | P169: 0 | Q169: 19897.32 | R169: 26.57 | S169: 146982.0268 | T169: 0 | U169: 75617.57 | W169: 2.22 | X169: 0 | Y169: 0 | Z169: 9781.763186 | AA169: 3.19 | AC169: 71737.60174 | AD169: 35137.86629 | AE169: 21589.00319 | AF169: 52610.99355 | AG169: 8346.309581 | AH169: 828.4282627 | AI169: 3180.703713 | AJ169: 2940.216812 | AK169: 35330.36645 | AL169: 4443.970419 | AM169: 4787.2 | AT169: 219.53 | AU169: 4233.52 | CG169: 32469.47
A170: 170 | G170: (ג) | H170: חברות זרות החזקה של 10% ומעלה | J170: 4783.89 | K170: 0.1557417731 | L170: 56.54982228 | M170: 1662.0701 | N170: 57.03433603 | O170: 1457.13 | P170: 0 | Q170: 36.68 | S170: 583.4790362 | T170: 0 | U170: 0 | W170: 0.02 | X170: 0 | Y170: 0 | Z170: 38.83096376 | AC170: 243.0828707 | AD170: 116.8891171 | AE170: 69.77703216 | AF170: 172.9722688 | AG170: 27.45934469 | AH170: 2.807129252 | AI170: 10.58088291 | AJ170: 9.502967841 | AK170: 116.1577312 | AL170: 14.62065531 | AM170: 17.43 | CG170: 90.66
A171: 171 | F171: (2) | G171: לא סחיר | J171: 1655391.06 | K171: 44.81477787 | L171: 16272.24137 | M171: 478261.5534 | N171: 16411.66046 | O171: 503915.28 | P171: 33752.59163 | Q171: 183683.98 | R171: 34783.5 | S171: 2471.012294 | T171: 0 | U171: 22727.16 | V171: 0 | W171: 397.15 | X171: 0 | Y171: 2097.878375 | Z171: 164.4477057 | AA171: 376.6 | AB171: 0 | AC171: 63308.26402 | AD171: 27866.91755 | AE171: 28386.50775 | AF171: 43505.90872 | AG171: 22256.95388 | AH171: 731.0859843 | AI171: 2522.532455 | AJ171: 3865.972253 | AK171: 29215.94128 | AL171: 11850.65612 | AM171: 19658.52 | AN171: 0 | AO171: 0 | AP171: 0 | AQ171: 0 | AR171: 0 | AS171: 0 | AT171: 0 | AU171: 0 | AV171: 0 | AW171: 0 | AX171: 0 | AY171: 0 | AZ171: 0 | BA171: 0 | BB171: 0 | BC171: 0 | BD171: 0 | BE171: 0 | BF171: 0 | BG171: 0 | BH171: 0 | BI171: 0 | BJ171: 0 | BK171: 0 | BL171: 0 | BM171: 0 | BN171: 0 | BO171: 0 | BP171: 0 | BQ171: 0 | BR171: 0 | BS171: 0 | BT171: 0 | BU171: 0 | BV171: 0 | BW171: 0 | BX171: 0 | BY171: 0 | BZ171: 0 | CA171: 0 | CB171: 0 | CC171: 0 | CD171: 0 | CE171: 0 | CF171: 0 | CG171: 106861.93
A172: 172 | G172: (א) | H172: חברות ישראליות | J172: 0 | K172: 0 | L172: 0 | M172: 0 | N172: 0 | P172: 0 | S172: 0 | T172: 0 | X172: 0 | Y172: 0 | Z172: 0 | AC172: 0 | AD172: 0 | AE172: 0 | AF172: 0 | AG172: 0 | AH172: 0 | AI172: 0 | AJ172: 0 | AK172: 0 | AL172: 0 | CG172: 0
A173: 173 | G173: (ב) | H173: חברות זרות | J173: 1655391.06 | K173: 44.81477787 | L173: 16272.24137 | M173: 478261.5534 | N173: 16411.66046 | O173: 503915.28 | P173: 33752.59163 | Q173: 183683.98 | R173: 34783.5 | S173: 2471.012294 | T173: 0 | U173: 22727.16 | W173: 397.15 | X173: 0 | Y173: 2097.878375 | Z173: 164.4477057 | AA173: 376.6 | AC173: 63308.26402 | AD173: 27866.91755 | AE173: 28386.50775 | AF173: 43505.90872 | AG173: 22256.95388 | AH173: 731.0859843 | AI173: 2522.532455 | AJ173: 3865.972253 | AK173: 29215.94128 | AL173: 11850.65612 | AM173: 19658.52 | CG173: 106861.93
A174: 174 | J174: 0 | AC174: 0 | AD174: 0 | AE174: 0 | AF174: 0 | AG174: 0 | AH174: 0 | AI174: 0 | AJ174: 0 | AK174: 0 | AL174: 0 | CG174: 0
A175: 175 | D175: 5) | E175: השקעות בקרנות סל | J175: 12144408.87 | K175: 299.6125801 | L175: 108789.2979 | M175: 3197453.715 | N175: 109721.3948 | O175: 2843428.83 | P175: 30534.25595 | Q175: 294005.09 | R175: 50024.76 | S175: 771508.0177 | T175: 365.1684858 | U175: 612099.77 | V175: 0 | W175: 33937.96 | X175: 22.76151418 | Y175: 1897.844051 | Z175: 51344.4323 | AA175: 13983.89 | AB175: 428424.1 | AC175: 413517.2685 | AD175: 218463.8892 | AE175: 156069.1736 | AF175: 338516.8705 | AG175: 77903.47251 | AH175: 4775.31147 | AI175: 19775.50082 | AJ175: 21255.13642 | AK175: 227327.4895 | AL175: 41479.49749 | AM175: 25566.01 | AN175: 37246.48 | AO175: 1269228.28 | AP175: 44812.47 | AQ175: 149773.65 | AR175: 160588.3 | AS175: 52389.76 | AT175: 1663.34 | AU175: 5019.22 | AV175: 43122.25 | AW175: 0 | AX175: 0 | AY175: 0 | AZ175: 0 | BA175: 0 | BB175: 0 | BC175: 0 | BD175: 0 | BE175: 0 | BF175: 0 | BG175: 0 | BH175: 0 | BI175: 0 | BJ175: 0 | BK175: 0 | BL175: 0 | BM175: 0 | BN175: 0 | BO175: 0 | BP175: 0 | BQ175: 0 | BR175: 0 | BS175: 0 | BT175: 0 | BU175: 0 | BV175: 0 | BW175: 0 | BX175: 0 | BY175: 0 | BZ175: 0 | CA175: 0 | CB175: 0 | CC175: 0 | CD175: 0 | CE175: 0 | CF175: 0 | CG175: 288074.6
A176: 176 | E176: א) | F176: בישראל | J176: 3647466.55 | K176: 42.42272646 | L176: 15403.68774 | M176: 452733.6744 | N176: 15535.66514 | O176: 439675.39 | P176: 26546.6443 | Q176: 160975.33 | R176: 45494.6 | S176: 81300.45431 | T176: 365.1684858 | U176: 5340.09 | V176: 0 | W176: 28877.06 | X176: 22.76151418 | Y176: 1649.995699 | Z176: 5410.605692 | AA176: 0 | AB176: 236748.09 | AC176: 55501.98123 | AD176: 38649.85836 | AE176: 42554.26413 | AF176: 70033.87704 | AG176: 32097.99671 | AH176: 640.9387654 | AI176: 3498.61164 | AJ176: 5795.485865 | AK176: 47030.52296 | AL176: 17090.49329 | AM176: 2455.93 | AN176: 37246.48 | AO176: 1269228.28 | AP176: 44812.47 | AQ176: 149773.65 | AR176: 160588.3 | AS176: 52389.76 | AT176: 15.5 | AU176: 782.46 | AV176: 0 | AW176: 0 | AX176: 0 | AY176: 0 | AZ176: 0 | BA176: 0 | BB176: 0 | BC176: 0 | BD176: 0 | BE176: 0 | BF176: 0 | BG176: 0 | BH176: 0 | BI176: 0 | BJ176: 0 | BK176: 0 | BL176: 0 | BM176: 0 | BN176: 0 | BO176: 0 | BP176: 0 | BQ176: 0 | BR176: 0 | BS176: 0 | BT176: 0 | BU176: 0 | BV176: 0 | BW176: 0 | BX176: 0 | BY176: 0 | BZ176: 0 | CA176: 0 | CB176: 0 | CC176: 0 | CD176: 0 | CE176: 0 | CF176: 0 | CG176: 101158.05
A177: 177 | F177: (1) | G177: שמחקות מדדי מניות בארץ | J177: 839361.96 | K177: 19.65304085 | L177: 7136.017172 | M177: 209736.4819 | N177: 7197.157921 | O177: 183875.97 | P177: 0 | Q177: 4628.48 | S177: 73628.99559 | T177: 0 | W177: 2.62 | X177: 0 | Y177: 0 | Z177: 4900.06441 | AB177: 65175.14 | AC177: 30674.32189 | AD177: 14750.76101 | AE177: 8804.685599 | AF177: 21827.25413 | AG177: 3464.751986 | AH177: 354.2281116 | AI177: 1335.248986 | AJ177: 1199.114401 | AK177: 14657.86587 | AL177: 1844.798014 | AM177: 2199.13 | AR177: 160588.3 | AS177: 9920.85 | CG177: 11440.07
A178: 178 | F178: (2) | G178: שמחקות מדדי מניות בחו"ל | J178: 1375272.87 | K178: 2.807154667 | L178: 1019.277579 | M178: 29957.84461 | N178: 1028.010658 | O178: 26154.78 | P178: 0 | Q178: 1227.6 | R178: 1.88 | S178: 7669.508506 | T178: 0 | U178: 5340.09 | W178: 0.06 | X178: 0 | Y178: 0 | Z178: 510.4114944 | AC178: 3933.831975 | AD178: 1937.404792 | AE178: 1199.534777 | AF178: 2911.399736 | AG178: 461.4253142 | AH178: 45.42802533 | AI178: 175.3752082 | AJ178: 163.3652229 | AK178: 1955.120264 | AL178: 245.6846858 | AM178: 256.8 | AO178: 1269228.28 | AS178: 17180.92 | AT178: 15.5 | AU178: 782.46 | CG178: 1868.07
A179: 179 | F179: (3) | G179: שמחקות מדדי אג"ח בארץ | J179: 1432831.72 | K179: 19.96253094 | L179: 7248.392991 | M179: 213039.3479 | N179: 7310.496566 | O179: 229644.64 | P179: 26546.6443 | Q179: 155119.25 | R179: 45492.72 | S179: 1.950211945 | T179: 365.1684858 | W179: 28874.38 | X179: 22.76151418 | Y179: 1649.995699 | Z179: 0.1297880552 | AB179: 171572.95 | AC179: 20893.82737 | AD179: 21961.69255 | AE179: 32550.04376 | AF179: 45295.22318 | AG179: 28171.81941 | AH179: 241.2826285 | AI179: 1987.987446 | AJ179: 4433.006242 | AK179: 30417.53682 | AL179: 15000.01059 | AN179: 37246.48 | AP179: 44812.47 | AQ179: 149773.65 | AS179: 25287.99 | CG179: 87849.91
A180: 180 | F180: (4) | G180: שמחקות מדדי אג"ח בחו"ל | J180: 0 | K180: 0 | L180: 0 | M180: 0 | N180: 0 | P180: 0 | S180: 0 | T180: 0 | X180: 0 | Y180: 0 | Z180: 0 | AC180: 0 | AD180: 0 | AE180: 0 | AF180: 0 | AG180: 0 | AH180: 0 | AI180: 0 | AJ180: 0 | AK180: 0 | AL180: 0 | CG180: 0
A181: 181 | F181: (5) | G181: בחסר | J181: 0 | K181: 0 | L181: 0 | M181: 0 | N181: 0 | P181: 0 | S181: 0 | T181: 0 | X181: 0 | Y181: 0 | Z181: 0 | AC181: 0 | AD181: 0 | AE181: 0 | AF181: 0 | AG181: 0 | AH181: 0 | AI181: 0 | AJ181: 0 | AK181: 0 | AL181: 0 | CG181: 0
A182: 182 | F182: (6) | G182: אחר | J182: 0 | K182: 0 | L182: 0 | M182: 0 | N182: 0 | P182: 0 | S182: 0 | T182: 0 | X182: 0 | Y182: 0 | Z182: 0 | AC182: 0 | AD182: 0 | AE182: 0 | AF182: 0 | AG182: 0 | AH182: 0 | AI182: 0 | AJ182: 0 | AK182: 0 | AL182: 0 | CG182: 0
A183: 183 | E183: ב) | F183: בחו"ל | J183: 8496942.32 | K183: 257.1898537 | L183: 93385.6102 | M183: 2744720.04 | N183: 94185.72966 | O183: 2403753.44 | P183: 3987.611647 | Q183: 133029.76 | R183: 4530.16 | S183: 690207.5634 | T183: 0 | U183: 606759.68 | V183: 0 | W183: 5060.9 | X183: 0 | Y183: 247.8483529 | Z183: 45933.82661 | AA183: 13983.89 | AB183: 191676.01 | AC183: 358015.2873 | AD183: 179814.0308 | AE183: 113514.9094 | AF183: 268482.9934 | AG183: 45805.4758 | AH183: 4134.372704 | AI183: 16276.88918 | AJ183: 15459.65056 | AK183: 180296.9666 | AL183: 24389.0042 | AM183: 23110.08 | AN183: 0 | AO183: 0 | AP183: 0 | AQ183: 0 | AR183: 0 | AS183: 0 | AT183: 1647.84 | AU183: 4236.76 | AV183: 43122.25 | AW183: 0 | AX183: 0 | AY183: 0 | AZ183: 0 | BA183: 0 | BB183: 0 | BC183: 0 | BD183: 0 | BE183: 0 | BF183: 0 | BG183: 0 | BH183: 0 | BI183: 0 | BJ183: 0 | BK183: 0 | BL183: 0 | BM183: 0 | BN183: 0 | BO183: 0 | BP183: 0 | BQ183: 0 | BR183: 0 | BS183: 0 | BT183: 0 | BU183: 0 | BV183: 0 | BW183: 0 | BX183: 0 | BY183: 0 | BZ183: 0 | CA183: 0 | CB183: 0 | CC183: 0 | CD183: 0 | CE183: 0 | CF183: 0 | CG183: 186916.55
A184: 184 | F184: (1) | G184: שמחקות מדדי מניות | J184: 8161024.99 | K184: 252.6263025 | L184: 91728.58522 | M184: 2696018.001 | N184: 92514.50744 | O184: 2353766.38 | P184: 0 | Q184: 110476.06 | R184: 168.77 | S184: 690207.5634 | T184: 0 | U184: 517924.03 | W184: 5.51 | X184: 0 | Y184: 0 | Z184: 45933.82661 | AB184: 149559.54 | AC184: 354020.4696 | AD184: 174354.6021 | AE184: 107950.6928 | AF184: 262007.6399 | AG184: 41525.46578 | AH184: 4088.240414 | AI184: 15782.69795 | AJ184: 14701.85719 | AK184: 175948.5101 | AL184: 22110.12422 | AM184: 23110.08 | AT184: 1395.27 | AU184: 4236.76 | AV184: 43122.25 | CG184: 168114.93
A185: 185 | F185: (2) | G185: שמחקות מדדים אחרים | J185: 335917.33 | K185: 4.56355117 | L185: 1657.024974 | M185: 48702.03926 | N185: 1671.222214 | O185: 49987.06 | P185: 3987.611647 | Q185: 22553.7 | R185: 4361.39 | S185: 0 | T185: 0 | U185: 88835.65 | W185: 5055.39 | X185: 0 | Y185: 247.8483529 | Z185: 0 | AA185: 13983.89 | AB185: 42116.47 | AC185: 3994.817709 | AD185: 5459.42877 | AE185: 5564.216638 | AF185: 6475.353554 | AG185: 4280.010011 | AH185: 46.13229066 | AI185: 494.19123 | AJ185: 757.7933618 | AK185: 4348.456446 | AL185: 2278.879989 | AT185: 252.57 | CG185: 18801.62
A186: 186 | F186: (3) | G186: בחסר | J186: 0 | K186: 0 | L186: 0 | M186: 0 | N186: 0 | P186: 0 | S186: 0 | T186: 0 | X186: 0 | Y186: 0 | Z186: 0 | AC186: 0 | AD186: 0 | AE186: 0 | AF186: 0 | AG186: 0 | AH186: 0 | AI186: 0 | AJ186: 0 | AK186: 0 | AL186: 0 | CG186: 0
A187: 187 | F187: (4) | G187: אחר | J187: 0 | K187: 0 | L187: 0 | M187: 0 | N187: 0 | P187: 0 | S187: 0 | T187: 0 | X187: 0 | Y187: 0 | Z187: 0 | AC187: 0 | AD187: 0 | AE187: 0 | AF187: 0 | AG187: 0 | AH187: 0 | AI187: 0 | AJ187: 0 | AK187: 0 | AL187: 0 | CG187: 0
A188: 188 | AC188: 0 | AD188: 0 | AE188: 0 | AF188: 0 | AG188: 0 | AH188: 0 | AI188: 0 | AJ188: 0 | AK188: 0 | AL188: 0 | CG188: 0
A189: 189 | D189: 6) | E189: תעודות השתתפות בקרנות נאמנות | J189: 2598396.24 | K189: 60.835753 | L189: 22089.45584 | M189: 649236.7721 | N189: 22278.7163 | O189: 607981.05 | P189: 21975.36055 | Q189: 139846.98 | R189: 24182.82 | S189: 99556.57584 | T189: 0 | U189: 457299.19 | V189: 0 | W189: 27860.73 | X189: 0 | Y189: 1365.869448 | Z189: 6625.564156 | AA189: 31514.25 | AB189: 0 | AC189: 72064.68457 | AD189: 54731.31399 | AE189: 45918.43594 | AF189: 72715.20744 | AG189: 29455.70691 | AH189: 832.2054264 | AI189: 4954.316013 | AJ189: 6253.654055 | AK189: 48831.14256 | AL189: 15683.61309 | AM189: 3269.66 | AN189: 269.11 | AO189: 0 | AP189: 745.45 | AQ189: 1034.24 | AR189: 834.39 | AS189: 0 | AT189: 1587.54 | AU189: 0 | AV189: 0 | AW189: 0 | AX189: 0 | AY189: 0 | AZ189: 0 | BA189: 0 | BB189: 0 | BC189: 0 | BD189: 0 | BE189: 0 | BF189: 0 | BG189: 0 | BH189: 0 | BI189: 0 | BJ189: 0 | BK189: 0 | BL189: 0 | BM189: 0 | BN189: 0 | BO189: 0 | BP189: 0 | BQ189: 0 | BR189: 0 | BS189: 0 | BT189: 0 | BU189: 0 | BV189: 0 | BW189: 0 | BX189: 0 | BY189: 0 | BZ189: 0 | CA189: 0 | CB189: 0 | CC189: 0 | CD189: 0 | CE189: 0 | CF189: 0 | CG189: 127341.4
A190: 190 | E190: א) | F190: בישראל | J190: 10712.73 | K190: 0.2508605386 | L190: 91.08743652 | M190: 2677.173838 | N190: 91.86786543 | O190: 2347.08 | P190: 0 | Q190: 59.08 | R190: 123.93 | S190: 939.8333891 | T190: 0 | W190: 0.03 | X190: 0 | Y190: 0 | Z190: 62.54661094 | AC190: 391.5385001 | AD190: 188.2862039 | AE190: 112.3843244 | AF190: 278.6114043 | AG190: 44.22337903 | AH190: 4.521499905 | AI190: 17.04379609 | AJ190: 15.30567563 | AK190: 187.0985957 | AL190: 23.54662097 | AM190: 28.07 | AN190: 269.11 | AP190: 745.45 | AQ190: 1034.24 | AR190: 834.39 | CG190: 146.03
A191: 191 | E191: ב) | F191: בחו"ל | J191: 2587683.51 | K191: 60.58489246 | L191: 21998.3684 | M191: 646559.5983 | N191: 22186.84843 | O191: 605633.97 | P191: 21975.36055 | Q191: 139787.9 | R191: 24058.89 | S191: 98616.74245 | T191: 0 | U191: 457299.19 | V191: 0 | W191: 27860.7 | X191: 0 | Y191: 1365.869448 | Z191: 6563.017546 | AA191: 31514.25 | AB191: 0 | AC191: 71673.14607 | AD191: 54543.02778 | AE191: 45806.05162 | AF191: 72436.59604 | AG191: 29411.48353 | AH191: 827.6839265 | AI191: 4937.272217 | AJ191: 6238.34838 | AK191: 48644.04396 | AL191: 15660.06647 | AM191: 3241.59 | AN191: 0 | AO191: 0 | AP191: 0 | AQ191: 0 | AR191: 0 | AS191: 0 | AT191: 1587.54 | AU191: 0 | AV191: 0 | AW191: 0 | AX191: 0 | AY191: 0 | AZ191: 0 | BA191: 0 | BB191: 0 | BC191: 0 | BD191: 0 | BE191: 0 | BF191: 0 | BG191: 0 | BH191: 0 | BI191: 0 | BJ191: 0 | BK191: 0 | BL191: 0 | BM191: 0 | BN191: 0 | BO191: 0 | BP191: 0 | BQ191: 0 | BR191: 0 | BS191: 0 | BT191: 0 | BU191: 0 | BV191: 0 | BW191: 0 | BX191: 0 | BY191: 0 | BZ191: 0 | CA191: 0 | CB191: 0 | CC191: 0 | CD191: 0 | CE191: 0 | CF191: 0 | CG191: 127195.37
A192: 192 | F192: (1) | G192: אג"ח קנצרני | J192: 1475807.77 | K192: 25.14933861 | L192: 9131.722341 | M192: 268392.7562 | N192: 9209.962112 | O192: 275474.41 | P192: 21975.36055 | Q192: 124291.5 | R192: 24035.25 | S192: 1802.323998 | T192: 0 | U192: 389889.57 | W192: 27859.84 | X192: 0 | Y192: 1365.869448 | Z192: 119.9460023 | AA192: 31514.25 | AC192: 22015.11866 | AD192: 30086.47196 | AE192: 30663.92516 | AF192: 35685.1249 | AG192: 23586.74182 | AH192: 254.2313384 | AI192: 2723.44804 | AJ192: 4176.134836 | AK192: 23963.9751 | AL192: 12558.69818 | AT192: 1391.87 | CG192: 103614.12
A193: 193 | F193: (2) | G193: אג"ח ממשלתי | J193: 0 | K193: 0 | L193: 0 | M193: 0 | N193: 0 | P193: 0 | S193: 0 | T193: 0 | X193: 0 | Y193: 0 | Z193: 0 | AC193: 0 | AD193: 0 | AE193: 0 | AF193: 0 | AG193: 0 | AH193: 0 | AI193: 0 | AJ193: 0 | AK193: 0 | AL193: 0 | CG193: 0
A194: 194 | F194: (3) | G194: מניות | J194: 1111875.74 | K194: 35.43555384 | L194: 12866.64606 | M194: 378166.8421 | N194: 12976.88632 | O194: 330159.56 | P194: 0 | Q194: 15496.4 | R194: 23.64 | S194: 96814.41846 | T194: 0 | U194: 67409.62 | W194: 0.86 | X194: 0 | Y194: 0 | Z194: 6443.071543 | AC194: 49658.02741 | AD194: 24456.55582 | AE194: 15142.12646 | AF194: 36751.47114 | AG194: 5824.741711 | AH194: 573.4525881 | AI194: 2213.824177 | AJ194: 2062.213544 | AK194: 24680.06886 | AL194: 3101.368289 | AM194: 3241.59 | AT194: 195.67 | CG194: 23581.25
A195: 195 | F195: (4) | G195: אחר | J195: 0 | K195: 0 | L195: 0 | M195: 0 | N195: 0 | P195: 0 | S195: 0 | T195: 0 | X195: 0 | Y195: 0 | Z195: 0 | AC195: 0 | AD195: 0 | AE195: 0 | AF195: 0 | AG195: 0 | AH195: 0 | AI195: 0 | AJ195: 0 | AK195: 0 | AL195: 0 | CG195: 0
A196: 196 | AC196: 0 | AD196: 0 | AE196: 0 | AF196: 0 | AG196: 0 | AH196: 0 | AI196: 0 | AJ196: 0 | AK196: 0 | AL196: 0 | CG196: 0
A197: 197 | D197: 7) | E197: קרנות השקעה | J197: 11168802.38 | K197: 314.1953068 | L197: 114084.2845 | M197: 3353080.002 | N197: 115061.7483 | O197: 3543356.93 | P197: 45522.30967 | Q197: 916425.5 | R197: 243919.84 | S197: 325698.4743 | T197: 0 | U197: 113248.55 | V197: 0 | W197: 2017.14 | X197: 0 | Y197: 2829.420332 | Z197: 21675.47567 | AA197: 3396.48 | AB197: 0 | AC197: 476943.6584 | AD197: 201581.4217 | AE197: 261130.8262 | AF197: 278269.7432 | AG197: 98812.60847 | AH197: 5507.761576 | AI197: 18247.2883 | AJ197: 35563.53383 | AK197: 186869.1568 | AL197: 52612.51153 | AM197: 76217.65 | AN197: 0 | AO197: 0 | AP197: 0 | AQ197: 0 | AR197: 0 | AS197: 0 | AT197: 0 | AU197: 0 | AV197: 0 | AW197: 0 | AX197: 0 | AY197: 0 | AZ197: 0 | BA197: 0 | BB197: 0 | BC197: 0 | BD197: 0 | BE197: 0 | BF197: 0 | BG197: 0 | BH197: 0 | BI197: 0 | BJ197: 0 | BK197: 0 | BL197: 0 | BM197: 0 | BN197: 0 | BO197: 0 | BP197: 0 | BQ197: 0 | BR197: 0 | BS197: 0 | BT197: 0 | BU197: 0 | BV197: 0 | BW197: 0 | BX197: 0 | BY197: 0 | BZ197: 0 | CA197: 0 | CB197: 0 | CC197: 0 | CD197: 0 | CE197: 0 | CF197: 0 | CG197: 676415.87
A198: 198 | E198: א) | F198: בישראל | J198: 1854728.9 | K198: 74.12398056 | L198: 26914.40994 | M198: 791048.2159 | N198: 27145.01017 | O198: 567199.99 | P198: 5208.752163 | Q198: 121568.64 | R198: 28030.25 | S198: 47050.54148 | T198: 0 | U198: 5952.09 | V198: 0 | W198: 180.94 | X198: 0 | Y198: 323.7478367 | Z198: 3131.248524 | AA198: 0 | AB198: 0 | AC198: 39008.40956 | AD198: 16552.73509 | AE198: 18735.99567 | AF198: 21700.78988 | AG198: 5954.318757 | AH198: 450.4704392 | AI198: 1498.364913 | AJ198: 2551.664334 | AK198: 14572.94012 | AL198: 3170.361243 | AM198: 5482.08 | AN198: 0 | AO198: 0 | AP198: 0 | AQ198: 0 | AR198: 0 | AS198: 0 | AT198: 0 | AU198: 0 | AV198: 0 | AW198: 0 | AX198: 0 | AY198: 0 | AZ198: 0 | BA198: 0 | BB198: 0 | BC198: 0 | BD198: 0 | BE198: 0 | BF198: 0 | BG198: 0 | BH198: 0 | BI198: 0 | BJ198: 0 | BK198: 0 | BL198: 0 | BM198: 0 | BN198: 0 | BO198: 0 | BP198: 0 | BQ198: 0 | BR198: 0 | BS198: 0 | BT198: 0 | BU198: 0 | BV198: 0 | BW198: 0 | BX198: 0 | BY198: 0 | BZ198: 0 | CA198: 0 | CB198: 0 | CC198: 0 | CD198: 0 | CE198: 0 | CF198: 0 | CG198: 101222.81
A199: 199 | F199: (1) | G199: קרנות הון סיכון | J199: 148930.6 | K199: 5.900498798 | L199: 2142.470525 | M199: 62969.89196 | N199: 2160.827018 | O199: 39613.89 | P199: 0 | Q199: 6474.26 | R199: 1705.35 | S199: 4735.536523 | T199: 0 | U199: 1349.57 | X199: 0 | Y199: 0 | Z199: 315.1534771 | AC199: 5736.563964 | AD199: 2602.188147 | AE199: 2011.740136 | AF199: 2852.388272 | AG199: 423.9101591 | AH199: 66.24603561 | AI199: 235.5518527 | AJ199: 273.9798645 | AK199: 1915.491728 | AL199: 225.7098409 | AM199: 1335.22 | CG199: 9778.76
A200: 200 | F200: (2) | G200: קרנות גידור | J200: 350200.31 | K200: 13.6347243 | L200: 4950.767034 | M200: 145509.2435 | N200: 4993.184758 | O200: 125703.35 | P200: 1613.588099 | Q200: 18098.06 | R200: 3344.69 | S200: 15868.19015 | T200: 0 | U200: 302.58 | W200: 180.94 | X200: 0 | Y200: 100.291901 | Z200: 1056.039854 | AC200: 6257.033564 | AD200: 1922.521993 | AE200: 2463.953041 | AF200: 2671.082369 | AG200: 1157.671094 | AH200: 72.25643623 | AI200: 174.028007 | AJ200: 335.5669593 | AK200: 1793.737631 | AL200: 616.3989061 | AM200: 417.06 | CG200: 10584.44
A201: 201 | F201: (3) | G201: קרנות נדל"ן | J201: 94128.93 | K201: 0.9603656502 | L201: 348.7086717 | M201: 10248.98459 | N201: 351.6963761 | O201: 38501.1 | P201: 653.8596254 | Q201: 14764.58 | R201: 2754.22 | S201: 0 | T201: 0 | U201: 330.79 | X201: 0 | Y201: 40.64037462 | Z201: 0 | AC201: 5086.767832 | AD201: 2010.892623 | AE201: 2213.018005 | AF201: 2341.44615 | AG201: 1590.064416 | AH201: 58.74216779 | AI201: 182.027377 | AJ201: 301.3919951 | AK201: 1572.37385 | AL201: 846.6255845 | AM201: 738.69 | CG201: 9191.35
A202: 202 | F202: (4) | G202: קרנות השקעה אחרות | J202: 1261469.06 | K202: 53.6283918 | L202: 19472.46371 | M202: 572320.0959 | N202: 19639.30202 | O202: 363381.65 | P202: 2941.304439 | Q202: 82231.74 | R202: 20225.99 | S202: 26446.81481 | T202: 0 | U202: 3969.15 | X202: 0 | Y202: 182.8155611 | Z202: 1760.055192 | AC202: 21928.0442 | AD202: 10017.13232 | AE202: 12047.28448 | AF202: 13835.87309 | AG202: 2782.673088 | AH202: 253.2257996 | AI202: 906.7576761 | AJ202: 1640.725515 | AK202: 9291.336913 | AL202: 1481.626912 | AM202: 2991.11 | CG202: 71668.26
... 334 more rows
